{"text_format":"1","workbook":"xlsx","n_sheets":8,"sheets":["Game","Graphics","Levels","Editor","Demo","Demo Builder","Information","Options"],"not_rendered":{"charts":0,"images":1,"macros":1,"external_links":0,"defined_names":2,"comments":0,"pivot_tables":0},"unopened":[],"bounds":{"document_bytes":16777216,"sheet_cells":100000,"rows_first":2000,"rows_last":500,"rows_between":2000,"halvings":0,"cell_chars":16384,"cell_head_chars":4096},"cells_cut":0,"cells_raw":0,"read":"whole","date_system":"1900"}

{"sheet":"Game","index":0,"n_rows":0,"n_cols":0,"rows_kept":0,"cut":false,"hidden":false,"merged":[]}

{"sheet":"Graphics","index":1,"n_rows":263,"n_cols":53,"rows_kept":263,"cut":false,"hidden":false,"merged":[]}
[]
[]
[null,null,null,"`"]
[]
[]
[]
[]
[]
[]
[]
[]
[]
[]
[]
[]
[]
[]
[]
[]
[]
[]
[]
[]
[]
[]
[]
[]
[]
[]
[]
[]
[]
[]
[]
[]
[]
[]
[]
[]
[]
[]
[]
[]
[]
[]
[]
[]
[]
[]
[]
[]
[]
[]
[]
[]
[]
[]
[]
[]
[]
[]
[]
[]
[]
[]
[]
[]
[]
[]
[]
[]
[]
[]
[]
[]
[]
[]
[]
[]
[]
[]
[]
[]
[]
[]
[]
[]
[]
[]
[]
[]
[]
[]
[]
[]
[]
[]
[]
[]
[]
[]
[]
[]
[]
[]
[]
[]
[]
[]
[]
[]
[]
[]
[]
[]
[]
[]
[]
[]
[]
[]
[]
[]
[]
[]
[]
[]
[]
[]
[]
[]
[]
[]
[]
[]
[]
[]
[]
[]
[]
[]
[]
[]
[]
[]
[]
[]
[]
[]
[]
[]
[]
[]
[]
[]
[]
[]
[]
[]
[]
[]
[]
[]
[]
[]
[]
[]
[]
[]
[]
[]
[]
[]
[]
[]
[]
[]
[]
[]
[]
[]
[]
[]
[]
[]
[]
[]
[]
[]
[]
[]
[]
[]
[]
[]
[]
[]
[]
[]
[]
[]
[]
[]
[]
[]
[]
[]
[]
[]
[]
[]
[]
[]
[]
[]
[]
[]
[]
[]
[]
[]
[]
[]
[]
[]
[]
[]
[]
[]
[]
[]
[]
[]
[]
[]
[]
[]
[]
[]
[]
[]
[]
[]
[]
[]
[]
[]
[]
[]
[]
[]
[]
[]
[]
[]
[]
[]
[]
[]
[]
[]
[]
[null,null,null,"`",null,null,null,null,null,null,"`",null,null,null,null,null,null,"`",null,null,null,null,null,null,"`",null,null,null,null,null,null,"`",null,null,null,null,null,null,"`",null,null,null,null,null,null,"`",null,null,null,null,null,null,"`"]

{"sheet":"Levels","index":2,"n_rows":1379,"n_cols":9,"rows_kept":1379,"cut":false,"hidden":false,"merged":[]}
["T40","Level 1","Name","Cave A: Intro","This is the standard level used in creating a new gamepack-->","T40","Level 1","Name","Test Level"]
["T1D6E1D2C1D1R1E1D5R1D1R1D7E1D4R1D4T1",null,"Comments","Pick up jewels and exit before time is up",null,"T1X1E37T1",null,"Comments","Pick up jewels and exit before time is up"]
["T1D1R1X1R1D6E1D9R1C1D2R1D4E1D5E1D2T1",null,"Diamond Value",10,null,"T1E38T1",null,"Diamond Value",5]
["T1D10E1D2R1D5R1D1R1D2R1D8R1D4T1",null,"Extra Diamonds",15,null,"T1E38T1",null,"Extra Diamonds",15]
["T1R1D1R2D9R1D6R1D2R1D4R1D3R1D5T1",null,"Diamonds Needed",12,null,"T1E38T1",null,"Diamonds Needed",0]
["T1R1D1E1R1D9E1R1D2R1D8R1D6R1D1R2D1T1",null,"Time",150,null,"T1E38T1",null,"Time",150]
["T1D3E1D2R1D8R1D5R1D1E1R1D8R1D1R2D1T1",null,"Ameba Time",0,null,"T1E38T1",null,"Ameba Time",0]
["T1W30D3R1D2R1D1T1",null,"High Score",3310,null,"T1E38T1",null,"High Score"]
["T1D1E1D3R1D2C1D1E1D2R1D1R1D10C1D1R1C1D6E1D1T1",null,"High Score Name","Owen Morgan",null,"T1E38T1",null,"High Score Name"]
["T1D2C1D5R1D5E1D8R2E1R1D2R1D4R1D3T1",null,null,null,null,"T1E38T1"]
["T1D3R1D2R1D1R1D14R1E1D1R1D2R1D8T1",null,null,null,null,"T1E38T1"]
["T1D1R1D5R1D8R3D7R1D2E1D1C1D4R1D1T1",null,null,null,null,"T1E38T1"]
["T1D1C1D2E1D2R1D1E2D5R1D1R1C1D2C1D4R1D3R1D2C1D1E1D1T1",null,null,null,null,"T1E38T1"]
["T1D1E1R1D14R1E1R1D2R1D8C1D5R1T1",null,null,null,null,"T1E38T1"]
["T1D8W30T1",null,null,null,null,"T1E38T1"]
["T1E1R1D9R1D3C1D4R1D5R1D3R1D7T1",null,null,null,null,"T1E38T1"]
["T1E1R1D9E1R1D2R1D8R1D6R1D1R2D2P1T1",null,null,null,null,"T1E38T1"]
["T1D1E1D2R1D8R1D5R1D1E2D4C1D3R1D1R2D3T1",null,null,null,null,"T1E38T1"]
["T1D4R1C1D2R1D8R1D6R1D1R1C1D6R1D3T1",null,null,null,null,"T1E38T1"]
["T1D3E1D2R1D1E1D2R1D1R2D9R1D1R1C1D6E1D2R1T1",null,null,null,null,"T1E38T1"]
["T1D1C1D4E1D5E1D9E1D1R1D2R1D4R1D3R1D1T1",null,null,null,null,"T1E38T1"]
["T40",null,null,null,null,"T40"]
["E40"]
["T40","Level 2","Name","Cave B: Rooms"]
["T1D1R1D2R1D2W1D1R1D3C1D1W1D3E1D1R1D1W1R1D6W1D2R2D2T1",null,"Comments","Pick up jewels, but you must move boulders to get all jewels "]
["T1D7W1D6R1W1R2D1E1D3W1E1D2C1D3W1D4R1D1T1",null,"Diamond Value",20]
["T1E38T1",null,"Extra Diamonds",50]
["T1C1D6W1D1R1D4R1W1D1R1D1E1D2E1W1D2R1D2C1D1W1D2R1D1R1D1T1",null,"Diamonds Needed",10]
["T1D7W1D1R1D4R1W1D1R1D1E1R1D2W1D5R1D1W1D3E1D2T1",null,"Time",150]
["T1W19E1W18T1",null,"Ameba Time",20]
["T1D4R2D1W1D2R1D4W1D3E1D2R1W1D4R1D2W1D5R1T1",null,"High Score",2290]
["T1D7W1D2E1D4W1D3E1D3W1D4R1D1E1W1D5R1T1",null,"High Score Name","Owen Morgan"]
["T1E38T1"]
["T1R1D2R1D3W1D4R1D2W1D2R1E1D3W1D6C1W1R1D5T1"]
["T1R1D4R1D1W1D2R1D2R1D1W1D3E1D1E1R1W1D7W1R1D3R1D1T1"]
["T1D1R1D5W1D3R1D3W1D3E1D1E1R1W1D7W1E1R1D2R1D1T1"]
["T1W19E1W18T1"]
["T1R1D1E2F1D2W1D4R1D1R1W1D3E1D3W1D1R1C1D2R1D1W1D6T1"]
["T1D5R1D1W1R1D6W1D2C1E1D3W1E1D2R1D3W1D1R1D1R2D1T1"]
["T1E38T1"]
["T1C1D2E1D1R1D1W1R1D4R1D1W1D1R1D1E1D2R1W1D1R1D1R1D3W1D6T1"]
["T1D5R1D1W1R1D2C1D3W1D3E1R1D2W1D2R1D4W1D3R2E1T1"]
["T1D1C1D3E1R1W1D2R1D4W1D1X1C1E1R1D2W1D1E1D5W1D3R2E1T1"]
["T1D1R1D4E1W1D2E1D2R1D1W1D1P1D1E1D3W1D4R1D1R1W1D4E1D1T1"]
["T40"]
["E40"]
["T40","Level 3","Name","Cave C: Maze"]
["T1R1D1W2D1W1R2D1W1D3R1W1R1D2R1D4W1D3R1D5R1W1D1C1D1T1",null,"Comments","Pick up jewels. You must get every jewel to exit "]
["T1D2X1W1D1C1D1R1D1W1D3W3D2W1D1R1D4R1D2R1D1R1D3W1D1W1R1T1",null,"Diamond Value",15]
["T1D4W1D2R1C1D2R1D4W1D5R1D1W2R1D7W1D1W2T1",null,"Extra Diamonds",0]
["T1C1D1W1D2W1R1W1R1D2R1D4W1D3R1D6R1D1R2D6W1T1",null,"Diamonds Needed",24]
["T1R1D1W1D3W1D2R1D1W2D2R1D1W2C1D7R1D1R2D6W1T1",null,"Time",150]
["T1R2D2R1D4W1D3R1D6R1D1R2D6R1D2C1W2D2T1",null,"Ameba Time",0]
["T1D2R1D1W2D2R1D1R2D3W1D4R1D1R2D6W1D2R1D1W1D1R1T1",null,"High Score",3000]
["T1D2W1D3C1D6C1D1R1D2W2R1D2R1D1W1D1W1R1D2W1R1D2C1D1R1T1",null,"High Score Name","nnnxdx"]
["T1R1D1R1D4W1D1W2D2C1D1R1D2W2R1D2R1D2C1D1W1D3W1D2R1D1W1T1"]
["T1D1R1D1W2D5R2W1R1D2C1D1W1D1W1R1D2W1R1D3W1R1D2C1D1R1D2T1"]
["T1W1D1W2D6R2W1R1D2R1D1W1D1W2D3W1D2R1D1W2D2R1D1W2T1"]
["T1D1W1D1R1D1R1D1W1D3W2R1D2R1D4W1D3R1D5W2D1R1D1W2T1"]
["T1D1W1D1R1D1R1D1W1D1C1D1W1D1W1R1D2W1R1D4R1D2R1D1R2D4W1D3T1"]
["T1W1D2W1R1W1R1D2R1D4W1D3C1D3W1D1R1W1D6W1D1W2D1C1T1"]
["T1W1D3W2R1D2W1D1C1D3W1R1D2R1D1R1D3R1D1W1R1D6W1D1P1T1"]
["T1W1D1C1D4R1D1W2D2R1D1W2R1D7R1D1W1R1D6W1D2T1"]
["T1D2R1D4W1D3R1D6R1D1R2D6W1D2R1D1W1D3W1T1"]
["T1R1D1W2D2R1D1W2D3W1D4R1D1R2D6W1D2R1C1D2R1D2T1"]
["T1W1D3R1D6R1D1R1C1D6R1D3W2D2W1R1D2C1D1W1D2T1"]
["T1R2D3W1D5R1D1R1C1D6W1D2R1D1W1C1D1C1D1R1W1D1R1D3T1"]
["T40"]
["E40"]
["T40","Level 4","Name","Cave D: Butterflies"]
["T1X1D5R1D20R1D8R1D1T1",null,"Comments","Drop boulders on butterflies to create jewels"]
["T1D5R1D14R1D17T1",null,"Diamond Value",5]
["T1D8R1D2R1D26T1",null,"Extra Diamonds",20]
["T1R1D37T1",null,"Diamonds Needed",32]
["T1D19R1D18T1",null,"Time",120]
["T1D1R1D21R1D9R1D4T1",null,"Ameba Time",20]
["T1D2R1D5R1D11R1D2R1D13R1T1",null,"High Score",4310]
["T1D6R1D6R1D21R1D2T1",null,"High Score Name","n"]
["T1D7E2M1E1D2R1D1E2M1E1D4E2M1E1D4E2M1E1D3T1"]
["T1D7E4D2R1D1E4D4E4D4E4R1D2T1"]
["T1D38T1"]
["T1D3R1D30R1D3T1"]
["T1D3R1D5R1D28T1"]
["T1D6R1D11R1D18R1T1"]
["T1D11R1D7R1D18T1"]
["T1D2R1D14R1D20T1"]
["T1D21R1D9R1D6T1"]
["T1D32R1D2R1D2T1"]
["T1D4R1D6R1D1R2D18R1D4T1"]
["T1D11R1D1R2D9R1D2R1D1R1D7P1T1"]
["T40"]
["E40"]
["T40","Level 5","Name","Intermission 1"]
["T1E19T20",null,"Comments"]
["T1E9R1E9T20",null,"Diamond Value",30]
["T1E2X1E6D1E9T20",null,"Extra Diamonds",0]
["T1E19T20",null,"Diamonds Needed",6]
["T1E19T20",null,"Time",25]
["T1E19T20",null,"Ameba Time",20]
["T1E19T20",null,"High Score",780]
["T1E19T20",null,"High Score Name","Owen Morgan"]
["T1E19T20"]
["T1E17P1M1T20"]
["T40"]
["T40"]
["T40"]
["T40"]
["T40"]
["T40"]
["T40"]
["T40"]
["T40"]
["T40"]
["T40"]
["E40"]
["T40","Level 6","Name","Cave E: Guards"]
["T1X1D37T1",null,"Comments","The jewels are there for grapping, but they are guarded by the deadly fireflies"]
["T1D38T1",null,"Diamond Value",50]
["T1D38T1",null,"Extra Diamonds",90]
["T1D38T1",null,"Diamonds Needed",4]
["T1D38T1",null,"Time",150]
["T1D38T1",null,"Ameba Time",20]
["T1D38T1",null,"High Score"]
["T1D7E3D5E3D5E3D5E3D4T1",null,"High Score Name"]
["T1D7E2F1D5E2F1D5E2F1D5E2F1D4T1"]
["T1D7E1C1E1D5E1C1E1D5E1C1E1D5E1C1E1D4T1"]
["T1D38T1"]
["T1D38T1"]
["T1D38T1"]
["T1D7E3D5E3D5E3D5E3D4T1"]
["T1D7E2F1D5E2F1D5E2F1D5E2F1D4T1"]
["T1D7E1C1E1D5E1C1E1D5E1C1E1D5E1C1E1D4T1"]
["T1D38T1"]
["T1D38T1"]
["T1D38T1"]
["T1D37P1T1"]
["T40"]
["E40"]
["T40","Level 7","Name","Cave F: Firefly dens"]
["T1W9D4R1D1R1D2R1D8R1D1W9T1",null,"Comments","Each firefly is guarding a jewel"]
["T1E9D11R1D4R1D3E9T1",null,"Diamond Value",40]
["T1E2C1E1F1E4D2R1D10R1D3R1D2E4F1E1C1E2T1",null,"Extra Diamonds",60]
["T1W9D2R1D8R1D6R1D1W9T1",null,"Diamonds Needed",4]
["T1E9D6R1D3R1D7R1D1E9T1",null,"Time",150]
["T1E2C1E1F1E4D4R1D6R1D1R2D5E4F1E1C1E2T1",null,"Ameba Time",20]
["T1W9D1R2D8R1D1R2D5W9T1",null,"High Score"]
["T1E9D4R1D1R1D4R1D2R1D5E9T1",null,"High Score Name"]
["T1E2C1E1F1E4D4R1D1R1D4R1D2R1D2R1D2E4F1E1C1E2T1"]
["T1W9D1R2D1R1D2R1D4R1D3R1D3W9T1"]
["T1E9D1R2D1R1D2R1D12E9T1"]
["T1E2C1E1F1E4D4R1D2R1D8R1D3E4F1E1C1E2T1"]
["T1W9D5R1D3R1D4R1D2R1D2W9T1"]
["T1D4R1D1R1D2R1D8R1D5R1D12R1T1"]
["T1D6R1D4R1D4R1D2R1D1R1D3R1D2R1D9T1"]
["T1D2R1D4R1D5R1D3R1D7R1D2R1D9T1"]
["T1D2R1D8R1D6R1D1R2D9R1D6T1"]
["T1R1D1X1D3R1D11R1D1R2D9R2D2R1D1P1T1"]
["T1D4R1D6R1D1R2D6R1D8R1D2R1D4T1"]
["T1R2D9R1D1R2D9R1D2R1D1R1D1R1D2R1D3T1"]
["T40"]
["E40"]
["T40","Level 8","Name","Cave G: Amoeba"]
["T1P1E1D2E1D1R2D5E1D2R1D1E1X1D4E1R2E1R1D2R1D1E1D1E2D1T1",null,"Comments","Surround the amoeba with boulders, so it can't grow anymore. Pick up jewels that are created when it suffocates "]
["T1E1D2R1D1E1D2E1D1E2D4E1D1R1D1R1D1E1D3E2R1D2R1D1C1D2E1D1T1",null,"Diamond Value",10]
["T1R1D5E2D1F1D1E2D3E1D1R1D1R1D1E1D3E1W11T1",null,"Extra Diamonds",20]
["T1D1R1D1C1D3E1D1E2D6E1D2R2D2R1D4E1D1E1D3E1D1E1T1",null,"Diamonds Needed",15]
["T1W12D1R1D1E1D2E3R1D2E1D4E1D3R1D4T1",null,"Time",120]
["T1R1D1E1R1D6E1D2R1D1E1D3E1D2R1D1E2D2R1D1E2F1D5T1",null,"Ameba Time",75]
["T1R1D1E1R1D6E1D2E1R1D2R1D4E1D3R1D6R1D1R2D1T1",null,"High Score"]
["T1D3E1D2R1E2D3E1D2R1D1E2D2R1D1E2D3E1D4R1D1R2D1T1",null,"High Score Name"]
["T1D3E1D2R1D1E1D1R1D4E1D3F1D6R1D1R1D2E2R1D2R1D1T1"]
["T1E2D2E1R1D4E1D2R1D1R1D4E1D1E2D7E2C1D2E1D1T1"]
["T1D1E1D3E1D2E1D1E2D2E1D1E2D5R2E1R1D2R1D1E1D1E1R1D2E1T1"]
["T1D2E1C1D2R1D1R1D4E1D1E2D6R1E2R1D2R1D1E1D1E2D3T1"]
["T1D1R1D1E2D2R1D1E2D3E1D1R1D1R1D1E1D3E2R1D2E1D4E1D3T1"]
["T1D4E2D1R1D1E2D3E1D1R1D1R1D1E1D1R1D1E1D1E1R1D2E1R1D4E1D1T1"]
["T1D1E2D4E1D4E2D2E1R1E1R1D2R1D4E1D3R1D3E1D1R1T1"]
["T1D5E1D1E2D1R2D1E1D3E2R1D2E1D1R1D3E1R1D2R1D1R1D3T1"]
["T1E1R1D6E1D2R1D1E1D1R1D4E1D1E2D2R1D1E2R1D7T1"]
["T1E1R1D6E1D2E1R1D2R1D4E1D3R1D6R1D1R2D3T1"]
["T1D1E1D2R1D1E1D3E1D2R1D1E2D1A2D1E2D3E1D4R1D1R2D3T1"]
["T1D1E1D1C1R1F1D2R1D4E1D3R1D6R1D1R1F1D5C1R1D3T1"]
["T40"]
["E40"]
["T40","Level 9","Name","Cave H: Enchanted wall"]
["T1E1D1E1R1D2E1D1E1D2E1D2R1D1E1D2X1E1D2R1D1E2D2R1D1E1R1D3E1D1T1",null,"Comments","Activate the enchanted wall and create as many jewels as you can "]
["T1D1R1D1R2D6E1D2R1D3R1D4E1D3R1D5C1R1D1R1D1T1",null,"Diamond Value",10]
["T1E1R1D2R1D3E2D3R1D2R1D1E1D2R1D1R1D3W11T1",null,"Extra Diamonds",20]
["T1D3C1E1D2R1D1E1F1D5R1D5E1D8R2E1R1D2R1T1",null,"Diamonds Needed",10]
["T1W12D2R1D1R1D4E1D1E2D6R1E2R1D2R1T1",null,"Time",120]
["T1D1E2D3E1D2R1D1E2D2R1D1E2D4E1R3D5E2R1D2E1T1",null,"Ameba Time",20]
["T1D3E1R1D3E1F1D2E1D2R1D1E2D5R1D1R2D2R1D1E1D1E1R1D2T1",null,"High Score"]
["T1D2R1D1E1D2R1D1E1R1D4E1D5E1D3R1E1R1D2R1D4E1D2T1",null,"High Score Name"]
["T1D5R1E1D6E1D1E2F1R2D1E1D3E2R1D2E1D1R1D4R1T1"]
["T1R1D1R1D3E1D1E1R1D6E1D2R1D3R1D4R1D4C1R1D1E2T1"]
["T1D6R1D1E1R1D9E1R1D2R1D3W11T1"]
["T1D1R2D6E1D2R1D1E1D3E1D2R1D1E2D2R1D1E2D3E1R1D2T1"]
["T1W12R1D8E1D3R1D6R1D1R2D2T1"]
["T1D2R1D3E2D3C1D2R1D1E1D2R1D1R2D9R1D1R2D2T1"]
["T1D2E1D2R1D1E1D1R1D3Z8D9E2R1D2R1D2T1"]
["T1R1P1D1E1R1D4R1D2R1E1R1D3C1E1D2E1D7E2R1D2R1D2T1"]
["T1E1D3E1D2R1D1E1D3R1D1E2D5R4D2R1D1E1D1E1R1D2E1R1T1"]
["T1D1E1R1D2F1D1R1D4E1D1E2D6R2E1R1D2R1D3E2D3R1T1"]
["T1R1D1E2D2R1D1E2D5R1D1R1D1E1D3E2R1D2R1D4E1D3R1T1"]
["T1D3E2D1R1D1R1E1D5R1D1R1D5E3D2E1D1R1D4R1D2T1"]
["T40"]
["E40"]
["T40","Level 10","Name","Intermission 2"]
["T1R1F1D15R1D1T20",null,"Comments"]
["T1X1R1F1D13R1P1D1T20",null,"Diamond Value",10]
["T1C1D1R1F1D11R1D1C1D1T20",null,"Extra Diamonds",0]
["T1R1C1D1R1F1D9R1D1C1R1D1T20",null,"Diamonds Needed",16]
["T1D1R1C1D1R1F1D7R1D1C1R1D2T20",null,"Time",50]
["T1D2R1C1D1R1F1D5R1D1C1R1D3T20",null,"Ameba Time",20]
["T1D3R1C1D1R1F1D3R1D1C1R1D4T20",null,"High Score",2010]
["T1D4R1C1D1R1F1D1R1D1C1R1D5T20",null,"High Score Name","Owen Morgan"]
["T1D5R1C1D1R2D1C1R1D6T20"]
["T1D6R1C1D2C1R1D7T20"]
["T40"]
["T40"]
["T40"]
["T40"]
["T40"]
["T40"]
["T40"]
["T40"]
["T40"]
["T40"]
["T40"]
["E40"]
["T40","Level 11","Name","Cave I: Greed"]
["T1C3R2C2R1C2R1D1R4C1R1C2D1C2R1C2R1C4R2C1R1C1R2T1",null,"Comments","You have to get a lot of jewels here, lucky there are so many "]
["T1C1R2C3R3C1R1C2R6C1R2C1D1C1R1C1R4C1R1C2R2C1T1",null,"Diamond Value",5]
["T1C2R7C1R1C2R2D1R3C1R2C3R1C1R1D1R2C1R3C2R1T1",null,"Extra Diamonds",10]
["T1R2C1R1C2R6C1R2C3D2C2R2C1R1C2R2C1R1C2D1R2C1T1",null,"Diamonds Needed",75]
["T1R2C1R1C2R6C1R2C1D1C1R1C1R4C1R1C1R1C1R2C2R2C1R1C1T1",null,"Time",150]
["T1C3R2C1R1C1D1C2R2C2R2C3R2C1R1C1R3D1C1R1C2R2C1R1C1T1",null,"Ameba Time",20]
["T1R5C1R2C4D2R3C1R1C2D1R1C1R1C2R1D1R2C6R1T1",null,"High Score",9680]
["T1C1R1C2W7D1W5C1R4C1R1W6D1W6R1T1",null,"High Score Name","Owen Morgan"]
["T1C1D1C2W1E11W1R1C2R3C1W1E11W1R1T1"]
["T1C1R1C1R1W1E1X1P1E8W1R1C2R3C1W1E11W1R1T1"]
["T1C1R2C1W1E11W1R1D1R2C2R1W1E11W1R1T1"]
["T1C1R2C1W1E11W1C4R1C1R1W1E11W1C1T1"]
["T1R1C3W1E11W1C1R2C1D1C1R1W1E11W1C1T1"]
["T1R4W1E11W1C1R2C2R2W1E11W1R1T1"]
["T1C1R1C2W1E11W1D1R1C1R2C1R1W1E11W1R1T1"]
["T1C1R1C2W1E11W9E11W1R1T1"]
["T1R3C1W1E31W1R1T1"]
["T1R3C1W1E11W1C2D1R1C1R1C1W1E11W1R1T1"]
["T1C2R2W1E11W1R3C1R1C2W1E11W1R1T1"]
["T1C2D2W13C1R3C3W13C1T1"]
["T40"]
["E40"]
["T40","Level 12","Name","Cave J: Tracks"]
["T1D12X1D25T1",null,"Comments","Get the jewels, avoid the fireflies "]
["T1W12E1W8D17T1",null,"Diamond Value",25]
["T1W1D4C1D13C1W1D17T1",null,"Extra Diamonds",60]
["T1W1D1W1E1W1D1W6E1W6D1W1D17T1",null,"Diamonds Needed",12]
["T1W1D1W1F1W1D1W1C1D9C1W1D1W1D17T1",null,"Time",150]
["T1W1D1W1F1W1D1W1D1W4E1W4D1W1D1W1D17T1",null,"Ameba Time",20]
["T1W1D1W1F1W1D1W1D1W1C1D5C1W1D1W1D1W1D17T1",null,"High Score"]
["T1W1D1W1F1W1D1W1D1W1D1W2E1W2D1W1D1W1D1W1D17T1",null,"High Score Name"]
["T1W1D1W1F1W1E1W1E1W1E1W1E3W1E1W1E1W1E1W1D17T1"]
["T1W1D1W1F1W1F1W1F1W1F1W1F3W1F1W1F1W1F1W1D17T1"]
["T1W1D1W1F1W1E1W1E1W1E1W1E3W1E1W1E1W1E1W1D17T1"]
["T1W1D1W1F1W1D1W1D1W1D1W5D1W1D1W1D1W1D17T1"]
["T1W1D1W1F1W1D1W1D1W1C1D5C1W1D1W1D1W1D17T1"]
["T1W1D1W1C1W1D1W1D1W9D1W1D1W1D17T1"]
["T1W1D1W1C1W1D1W1C1D9C1W1D1W1D17T1"]
["T1W1D1W1C1W1D1W13D1W1D17T1"]
["T1W1P1W1C1W1C1D13C1W1D17T1"]
["T1W21D17T1"]
["T1D38T1"]
["T1D38T1"]
["T40"]
["E40"]
["T40","Level 13","Name","Cave K: Crowd"]
["T1R1D1R1C1D1R3D1W1D3C1R2D2R1W1D3C1D3R1D1W1D3C1R1D1R1D1T1",null,"Comments","You must move a lot of boulders around in some tight spaces"]
["T1D3E1D1R1D1R1D1W1D3R1E1R1D2R1W1R1D4R1D2R1W1R1D3R1D1R2T1",null,"Diamond Value",50]
["T1D4E1D2R2W1D1R1D4R1D2W1D2R1D1E1R2D2W1D4R1D1R2T1",null,"Extra Diamonds",0]
["T1R1D1R1D2E1R3W1D1R1D4E1D2W1R1D6R1D1W1R1D6R1T1",null,"Diamonds Needed",6]
["T1R1D1E1D3R1D2W1D1E2D2R1D1R2W1D7R1D1W1R1D6E1T1",null,"Time",150]
["T1R2D2R1D4W1D3R1D5W1R1D1R2D5W1R1D2R1E1R1D2T1",null,"Ameba Time",20]
["T1D2R1D1R2D2R1W1R2D3R1D3W1R1D1R2D5W1R1D2R1D1E1D1W1T1",null,"High Score"]
["T1D2R1D3R1D2W1D3R1D1R1D2R1W1R1D2R1D1E1D1R2W1D1E1R1D2F1W1R1T1",null,"High Score Name"]
["T1R1D1R1D1W9F1W9R1W9D2W1D1E1T1"]
["T1D1R1D1E2D5R4D2R1D1R1D1R2D2R2D3E1R1D2R1W1R1D2T1"]
["T1R1D1R2D6R4D2R1D1E1D1E1R1D3R1D2R1D1R2D1W1R1D1R2T1"]
["T1D1E1D1R1D1R1D1E1W1D2R3D2R1D4E1D3R1D5R1W1D1R1D1R2T1"]
["T1D1E1D1R1D1R1D1E1W1R1D1W17R2D1W1D2R1D3T1"]
["T1R1D2E1R3D1W1R1D4R1D3R1D3E1D1R2D4W1D1R1D1R2D1R1T1"]
["T1R1D3R3D1W1R1D1R1D3E1R1D2R1D1R1D3R1D1R2W1D5R1D1P1T1"]
["T1E1D1R1D4R1W1E2D2R1D1R3D7R1D1R1W1D6E1D2T1"]
["T1D2R1D4E1W1D2R1D6R1D1R2D5W1R1D2R1D1R1D3R1T1"]
["T1R1D1R2D2R1D1W1R1D3R1D4R1X1R2D6R1D2R1F1D2R1D2T1"]
["T1R1D3R1D3W1D2R1D1R1F1D6R1D3E1R1D2E1R1D2R1C1R1D2T1"]
["T1R2D1C1D1E1D2W1D2R1D1R2D6R1D2R1D1E1R1D1F1D1R2D1R1D3T1"]
["T40"]
["E40"]
["T40","Level 14","Name","Cave L: Walls"]
["T1R1D1E1D3R2D5R1D1R1D2R1D8R1D5R1D2C1D1T1",null,"Comments","You must blast hrough walls to get at some of the jewels. Drop a boulder on a firefly at the right time and place to do this "]
["T1D5C1D1R1D7E1D4R1D4R1D2R1D5E1D2R1T1",null,"Diamond Value",20]
["T1D7R1C1W1D1R1D1W1D2E1W1D3W1R1D3R1D2E4D1E1D2E1T1",null,"Extra Diamonds",0]
["T1C1W11D1W1D3W1D2R1W1D5R1D1E2F1E1D5T1",null,"Diamonds Needed",19]
["T1R1D8W1D3W1D1R1D1W1E1C1D1W1D5R1D10T1",null,"Time",180]
["T1R2D2R1D4W1D3W1D3W1D2R1W1R2D6R1D2C1D4T1",null,"Ameba Time",20]
["T1D2R1D5R1W1R2D1W1D3W1D2R1W1R2D9R1D3R1T1",null,"High Score"]
["T1D1W11D1W1D1R1D1W1E1D1R1W1D1R1D4R1E4D2C1D1R1T1",null,"High Score Name"]
["T1R1D1R1D6W1D3W1D1R1D1W1D2R1W1D1R1D2C1D2E2F1E1D2R1D2T1"]
["T1D1R1D7W1R2E1W1D2C1W1D2E1W1D3R1D7C1D1R1D2T1"]
["T1E1D8W1R2E1W1D2R1W1D3W1D3E1D2R1D5R1D3T1"]
["T1D1W15R1W1D3W1D3R1D8R1D1E2T1"]
["T1D3R1D1R1D3W1D3W1R1D2W1R1D2W1D1R1D2R1D1R1E4D5T1"]
["T1D4R1E1R1D2W1D3W1D3W1C1D2W1D2R1E1D3E2F1E1D4C1T1"]
["T1D4E1D1R1D2W1D1C1D1W1D2R1W1D1R1D1W1D3R1D1E1R1D9T1"]
["T1D1W11D1W1D3W1D3W1D3R1D1E1R1D9T1"]
["T1D2R1D6W1D1R1D1W1D3W1R1D1R1W1D6E1D2R1D6T1"]
["T1R1D1X1D3R1D1E1W1D3W1D3W1R1D1R1W1D9R1C1D2R1D1P1T1"]
["T1D4R1D4W1D1R1D1W1C1D2W1D3W1D4E1D3R1D2C1D1E1D2T1"]
["T1R2D7W1D1R1D1W1C1D2W1D3W1D2R1D2C1D1C1D1R1D2R1D3T1"]
["T40"]
["E40"]
["T40","Level 15","Name"]
["T1E7X1E11T20",null,"Comments"]
["T1E19T20",null,"Diamond Value",10]
["T1E19T20",null,"Extra Diamonds",0]
["T1E19T20",null,"Diamonds Needed",14]
["T1E17P1E1T20",null,"Time",120]
["T1E19T20",null,"Ameba Time",10]
["T1E14F4E1T20",null,"High Score",2440]
["T1E14F4E1T20",null,"High Score Name","Owen Morgan"]
["T1E14F4E1T20"]
["T1C14F4E1T20"]
["T40"]
["T40"]
["T40"]
["T40"]
["T40"]
["T40"]
["T40"]
["T40"]
["T40"]
["T40"]
["T40"]
["E40"]
["T40","Level 16","Name","Cave M: Apocalypse"]
["T1R1D5R2D1P1D5R1D1X1R1A1D7R1D8R1D1T1",null,"Comments","Bring the butterflies and amoeba together and watch the jewels fly"]
["T1D5R1D1R1D12R1D4R1D2R1D1R1D7T1",null,"Diamond Value",5]
["T1D8R1D2R1D14R1D11T1",null,"Extra Diamonds",8]
["T1R1D7R1D11R1D6R1D2R1D7T1",null,"Diamonds Needed",50]
["T1R1D8R1D5R1D3R1D7R1D2R1D7T1",null,"Time",200]
["T1D1R1D2R1D8R1D6R1D1R2D9R1D4T1",null,"Ameba Time",40]
["T1D2R1D5R1D11R1D1R2D9R1D3R1T1",null,"High Score",8110]
["T1D6R1D6R1D1R1D4R1D2R1D8R1D2R1D2T1",null,"High Score Name","Owen Morgan"]
["T1R1D1R1D10R1D1R1D10R1D11T1"]
["T1D10R2D1R1D2R1D4R1D3R1D4R1D2R1D1R1D2T1"]
["T1D10R1D2R1D2R1D11R1D5R1D3T1"]
["T1D3R1D1R1D7R1D11R1D8R1D3T1"]
["T1D3R1D1R1D3R1D4R1D3R1D7R1D11T1"]
["T1D4R1D1R1D2R1D8R1D5R1D12R1T1"]
["T1D6R1D4R1D4R1D2R1D1R1D6R1D9T1"]
["T1D2R1D1W30D4T1"]
["T1D2R1D1M30D4T1"]
["T1R1D3R30D1R1D2T1"]
["T1D38T1"]
["T1D1R1D32R1D3T1"]
["T40"]
["E40"]
["T40","Level 17","Name","Cave N: Zigzag"]
["T1D2X1D35T1",null,"Comments","Magically transform the moths into crystals but don't waste any boulders and watch out for the flies"]
["T1D38T1",null,"Diamond Value",10]
["T1D38T1",null,"Extra Diamonds",20]
["T1D38T1",null,"Diamonds Needed",30]
["T1D21F1D1E1D1F1D1E1D1F1D1E1D6T1",null,"Time",150]
["T1D21R1D1R1D1R1D1R1D1R1D1R1D6T1",null,"Ameba Time",20]
["T1D38T1",null,"High Score"]
["T1D38T1",null,"High Score Name"]
["T1D9E1M1D1E1D1E1D1E1D1E1D1E1D17T1"]
["T1D9E2D1E1D1E1D1E1D1E1D1E1D17T1"]
["T1D9E2D1M1D1E1D1E1D1E1D1E1D17T1"]
["T1D9E2D1E1D1E1D1E1D1E1D1E1D17T1"]
["T1D9E2D1E1D1M1D1E1D1E1D1E1D17T1"]
["T1D9E2D1E1D1E1D1E1D1E1D1E1D17T1"]
["T1D9E2D1E1D1E1D1M1D1E1D1E1D17T1"]
["T1D9E2D1E1D1E1D1E1D1E1D1E1D17T1"]
["T1D9E2D1E1D1E1D1E1D1M1D1E1D17T1"]
["T1D9E2D1E1D1E1D1E1D1E1D1E1D17T1"]
["T1D9E2D1E1D1E1D1E1D1E1D1M1D17T1"]
["T1P1D37T1"]
["T40"]
["E40"]
["T40","Level 18","Name","Cave O: Funnel"]
["T1R1D1R2D2E2R1D2R1D2R1D1R1D2X1R1D2R1D1R2D2R1D1R2D3R1D1T1",null,"Comments","There is an enchanted wall at the bottom of the rock tunnel"]
["T1D1W1D1R2D6R1D2R1D3R1D4W1D3R1D6R1D1R1D1T1",null,"Diamond Value",10]
["T1R2W1D1R1D3E1R1D2E1R1D2R1D1R1D2R1W1R1D4E1D2E1D2R1D1R1F1T1",null,"Extra Diamonds",20]
["T1D3W1R1D2R1D1E1F1D5R1D1E1D2W1R1D1E2D5R4D2R1T1",null,"Diamonds Needed",15]
["T1D1R2D1W1R2D3E1R1D2R1D1R1D3W1R1D1E1R1D6R4D2R1T1",null,"Time",120]
["T1D1E1R1D2W1R1D2R1D1R1E1D2R1D1R2W1D3E1R3D1E1D3R3D2R1T1",null,"Ameba Time",8]
["T1D3R2D1W1D1E1F1D2R1D2R1D1R1W1D5R1D1R2D2R1D1R1D1R2D2T1",null,"High Score",2290]
["T1D2R1D1R1D2W1D1R2D4E1D1W1D3R1D2E1R3D2R1D4R1D2T1",null,"High Score Name","Owen Morgan"]
["T1D3E1D1R2D1W1D4R1D1E1W1F1R2D1E1D3R3D2R1D1R1D3E1R1T1"]
["T1R1D1R1D3R1D1R1W1D5W1R1D2R1D1E1D1R1D4R1D1E2D2R1D1R2T1"]
["T1D6R1D1R2W1D3W1D1E1D2R2D2R1D4E1D3R1D5T1"]
["T1D1R2D6R1D4R1D3R1D2R1D1R1E1D2R1D1R2D3E1R1D2T1"]
["T1D1R2D6R1D1Z3D2R1D4R1D3R1D6R1D1R2D2T1"]
["T1D2R1D3E1R1D3R1D2R1D1R1D2R1D1R2D3E1D5R1D1R2D2T1"]
["T1D2R1D2R1D1E1D1R1D4R1D5R1D1E2D6R3D2R1D1E1T1"]
["T1R1D2E1R1D4R1D2R1D1R1D4R1D1E2D7R3D2R1D2T1"]
["T1R1D3R1D2R1D1E2D2R1D1E2D4E1R4D2R1D1R1D1R2D2R2T1"]
["T1D1E1R1D2F1E1R1D4R1D1R2D6R4D2R1D1E1D1R2D2E1R1T1"]
["T1R1D1R2D2R1D1R2D3E1D1R1D1R1D1E1D3R3D2R1D4E1D3R1T1"]
["T1D3R2D1R1D1R2D3E1D1R1D1R1D1P1D3R1E1R1D2R1D1R1D4R1D2T1"]
["T40"]
["E40"]
["T40","Level 19","Name","Cave A: Intro"]
["T1X1D2R1D10R1D8R1D5R1D2R1D5T1",null,"Comments","Pick up jewels and exit before time is up"]
["T1D1R1D1R2D9R1D3R1D8R1D6R1D1R1D1T1",null,"Diamond Value",10]
["T1D1R1D2R1D8R1D2R1D4R1D1R1D10R1D1R2T1",null,"Extra Diamonds",20]
["T1D7R1D2R1D5R1D14R2D1R1D2R1T1",null,"Diamonds Needed",12]
["T1D2R1D3R1D4R1D2R1D1R1D14R1D2R1D2R1T1",null,"Time",150]
["T1D9R1D5R1D8R3D7R1D3T1",null,"Ameba Time",0]
["T1D4R1D4R1D5R1D8R1D1R2D2R1D4R1D2T1",null,"High Score"]
["T1D2R1D3Z6D2Z6D5R1D1R1D2R1D7T1",null,"High Score Name"]
["T1D5R1W1D4W1D2W1D2R2W1D7R1D4R1D4R1T1"]
["T1R1D1R1D3W1D2R1D1W1D2W1D4W1D3R1D4R1D5R1D3T1"]
["T1D6W1D2R1D1W1D2W1D4W1R1D2R1D8R1D5T1"]
["T1D1R2D3W1D4W1R1D1W1D4W1D1R1D5R1D7R1D2T1"]
["T1D1R2D3W1D4W1R2W1D1R1D2W1D5R1D6R1D1R2D2T1"]
["T1D2R1D3W1D4W1D2W1D4W1D1R2D9R1D1R2D2T1"]
["T1D5R1W6D2W6D12R1D2R1D2T1"]
["T1R1D3R1D4R1D2R1D1R1D17R1D2R1D2T1"]
["T1D13R1D8R1D5R1D8R1T1"]
["T1D2R1D2R1D1E4D4E4D3R1E4D1R1D2E4D2R1T1"]
["T1R1D5R1E2F1E1D4E2F1E1D4E2F1E1D1R1D2E2F1E1D2R1T1"]
["T1D6R1D23R1D4R1D1P1T1"]
["T40"]
["E40"]
["T40","Level 20","Name","Intermission 4"]
["T1D2X1D7R3D6T20",null,"Comments"]
["T1D10R3D6T20",null,"Diamond Value",30]
["T1D19T20",null,"Extra Diamonds",0]
["T1D10Z3D6T20",null,"Diamonds Needed",6]
["T1D7R1D2E3D6T20",null,"Time",25]
["T1D8R1D1E3D6T20",null,"Ameba Time",3]
["T1D9R1E3D6T20",null,"High Score",650]
["T1D8P1D1Z3D4E1D1T20",null,"High Score Name","Owen Morgan"]
["T1D10E3D6T20"]
["T1D10E3D6T20"]
["T40"]
["T40"]
["T40"]
["T40"]
["T40"]
["T40"]
["T40"]
["T40"]
["T40"]
["T40"]
["T40"]
[]
["T16R1T16R1T6","Level 1","Name"]
["T1X1D3E13D12E9T1",null,"Comments"]
["T1D15R1E1D12E3R1E5T1",null,"Diamond Value"]
["T1D15E2D12E9T1",null,"Extra Diamonds"]
["T1D15R1E1D12E3R1E5T1",null,"Diamonds Needed",25]
["T1D15E2D12E9T1",null,"Time",180]
["T1D15R1E1D12E3R1E5T1",null,"Ameba Time"]
["T1D15E2D1R1D10E9T1",null,"High Score",5310]
["T1D15R1E1D12E3R1E5T1",null,"High Score Name","Owen Morgan"]
["T1D15E2D12E9T1"]
["T1D15R1E1D1R1D10E3R1E5T1"]
["T1D15E2D12E9T1"]
["T1D15R1E1D12E3R1E5T1"]
["T1D15E2D1R1D10E9T1"]
["T1D15R1E1D12E3R1E5T1"]
["T1D15E2D12E9T1"]
["T1D15R1E1D12E3R1E5T1"]
["T1D15E2D1E1D1E1D1E1D1E1D1E1D2E9T1"]
["T1E1D1E1D1E1D1E1D1E1D1E1D1E1D2R1E1D1E1D1E1D1E1D1E1D1E1D2E3R1E5T1"]
["T1E1D1E1D1E1D1E1D1E1D1E1D1E1D2E2D1E1D1E1D1E1D1E1D1E1D2E9T1"]
["T1F1D1F1D1F1D1F1D1F1D1F1D1F1D2R1E1D1M1D1M1D1M1D1M1D1M1D2E3R1E4P1T1"]
["T16E1T16E1T6"]
[]
["T40","Level 2","Name"]
["T1E1W1E1W1E1W1E1W1E1W1D2T1E4A4E4T1D2W1E1W1E1W1E1W1E1W1E1T1",null,"Comments"]
["T1M1W1F1W1M1W1F1W1M1W1D2T1E4A4E4T1D2W1M1W1F1W1M1W1F1W1M1T1",null,"Diamond Value"]
["T1E1W1E1W1E1W1E1W1E1W1D2T1E4A4E4T1D2W1E1W1E1W1E1W1E1W1E1T1",null,"Extra Diamonds"]
["T1M1W1F1W1M1W1F1W1M1W1D2T1E4A4E4T1D2W1M1W1F1W1M1W1F1W1M1T1",null,"Diamonds Needed",50]
["T1E1W1E1W1E1W1E1W1E1W1D2T1E12T1D2W1E1W1E1W1E1W1E1W1E1T1",null,"Time",300]
["T1M1W1F1W1M1W1F1W1M1W1D2T1E12T1D2W1M1W1F1W1M1W1F1W1M1T1",null,"Ameba Time",30]
["T1E1W1E1W1E1W1E1W1E1W1D2T1E12T1D2W1E1W1E1W1E1W1E1W1E1T1",null,"High Score"]
["T1M1W1F1W1M1W1F1W1M1W1D2T1E12T1D2W1M1W1F1W1M1W1F1W1M1T1",null,"High Score Name"]
["T1E1W1E1W1E1W1E1W1E1W1D3E12D3W1E1W1E1W1E1W1E1W1E1T1"]
["T1M1W1F1W1M1W1F1W1M1W1D3E12D3W1M1W1F1W1M1W1F1W1M1T1"]
["T1E1W1E1W1E1W1E1W1E1W1D3E12D3W1E1W1E1W1E1W1E1W1E1T1"]
["T1R1D1R1D1R1D1R1D1R1D3T1E12T1D3R1D1R1D1R1D1R1D1R1T1"]
["T1E1D12T1E10T1D13T1"]
["T1D14T1E8T1D14T1"]
["T1D15T1E2X1E3T1D15T1"]
["T1D15T1E6T1D15T1"]
["T1D15T1E6T1D15T1"]
["T1D15T1E6T1D15T1"]
["T1D15T1D6T1D15T1"]
["T1D2P1D35T1"]
["T16E1T16E1T6"]
[]
["T40","Level 3","Name"]
["T1X1E1C14P1T22",null,"Comments"]
["T1W2C14W1T22",null,"Diamond Value"]
["T1E1W1C14W1T22",null,"Extra Diamonds"]
["T1E1W16T22",null,"Diamonds Needed",5]
["T40",null,"Time",100]
["T40",null,"Ameba Time"]
["T40",null,"High Score",5200]
["T40",null,"High Score Name","Owen Morgan"]
["T40"]
["T40"]
["T40"]
["T40"]
["T40"]
["T40"]
["T40"]
["T40"]
["T40"]
["T40"]
["T40"]
["T40"]
["T40"]
[]
["T40","Level 4","Name"]
["T1X1E37T1",null,"Comments"]
["T1E38T1",null,"Diamond Value"]
["T1E38T1",null,"Extra Diamonds"]
["T1E38T1",null,"Diamonds Needed"]
["T1E38T1",null,"Time"]
["T1E38T1",null,"Ameba Time"]
["T1E38T1",null,"High Score"]
["T1E38T1",null,"High Score Name"]
["T1E38T1"]
["T1E38T1"]
["T1E38T1"]
["T1E38T1"]
["T1E38T1"]
["T1E38T1"]
["T1E38T1"]
["T1E38T1"]
["T1E38T1"]
["T1E38T1"]
["T1E38T1"]
["T1E37P1T1"]
["T40"]
[]
["T40","Level 5","Name"]
["T1X1E37T1",null,"Comments"]
["T1E38T1",null,"Diamond Value"]
["T1E38T1",null,"Extra Diamonds"]
["T1E38T1",null,"Diamonds Needed"]
["T1E38T1",null,"Time"]
["T1E38T1",null,"Ameba Time"]
["T1E38T1",null,"High Score"]
["T1E38T1",null,"High Score Name"]
["T1E38T1"]
["T1E38T1"]
["T1E38T1"]
["T1E38T1"]
["T1E38T1"]
["T1E38T1"]
["T1E38T1"]
["T1E38T1"]
["T1E38T1"]
["T1E38T1"]
["T1E38T1"]
["T1E37P1T1"]
["T40"]
[]
["T40","Level 6","Name"]
["T1X1E37T1",null,"Comments"]
["T1E38T1",null,"Diamond Value"]
["T1E38T1",null,"Extra Diamonds"]
["T1E38T1",null,"Diamonds Needed"]
["T1E38T1",null,"Time"]
["T1E38T1",null,"Ameba Time"]
["T1E38T1",null,"High Score"]
["T1E38T1",null,"High Score Name"]
["T1E38T1"]
["T1E38T1"]
["T1E38T1"]
["T1E38T1"]
["T1E38T1"]
["T1E38T1"]
["T1E38T1"]
["T1E38T1"]
["T1E38T1"]
["T1E38T1"]
["T1E38T1"]
["T1E37P1T1"]
["T40"]
[]
["T40","Level 7","Name"]
["T1X1E37T1",null,"Comments"]
["T1E38T1",null,"Diamond Value"]
["T1E38T1",null,"Extra Diamonds"]
["T1E38T1",null,"Diamonds Needed"]
["T1E38T1",null,"Time"]
["T1E38T1",null,"Ameba Time"]
["T1E38T1",null,"High Score"]
["T1E38T1",null,"High Score Name"]
["T1E38T1"]
["T1E38T1"]
["T1E38T1"]
["T1E38T1"]
["T1E38T1"]
["T1E38T1"]
["T1E38T1"]
["T1E38T1"]
["T1E38T1"]
["T1E38T1"]
["T1E38T1"]
["T1E37P1T1"]
["T40"]
[]
["T40","Level 8","Name"]
["T1X1E37T1",null,"Comments"]
["T1E38T1",null,"Diamond Value"]
["T1E38T1",null,"Extra Diamonds"]
["T1E38T1",null,"Diamonds Needed"]
["T1E38T1",null,"Time"]
["T1E38T1",null,"Ameba Time"]
["T1E38T1",null,"High Score"]
["T1E38T1",null,"High Score Name"]
["T1E38T1"]
["T1E38T1"]
["T1E38T1"]
["T1E38T1"]
["T1E38T1"]
["T1E38T1"]
["T1E38T1"]
["T1E38T1"]
["T1E38T1"]
["T1E38T1"]
["T1E38T1"]
["T1E37P1T1"]
["T40"]
[]
["T40","Level 9","Name"]
["T1X1E37T1",null,"Comments"]
["T1E38T1",null,"Diamond Value"]
["T1E38T1",null,"Extra Diamonds"]
["T1E38T1",null,"Diamonds Needed"]
["T1E38T1",null,"Time"]
["T1E38T1",null,"Ameba Time"]
["T1E38T1",null,"High Score"]
["T1E38T1",null,"High Score Name"]
["T1E38T1"]
["T1E38T1"]
["T1E38T1"]
["T1E38T1"]
["T1E38T1"]
["T1E38T1"]
["T1E38T1"]
["T1E38T1"]
["T1E38T1"]
["T1E38T1"]
["T1E38T1"]
["T1E38T1"]
["T40"]
[]
["T40","Level 10","Name"]
["T1X1E37T1",null,"Comments"]
["T1E38T1",null,"Diamond Value"]
["T1E38T1",null,"Extra Diamonds"]
["T1E38T1",null,"Diamonds Needed"]
["T1E38T1",null,"Time"]
["T1E38T1",null,"Ameba Time"]
["T1E38T1",null,"High Score"]
["T1E38T1",null,"High Score Name"]
["T1E38T1"]
["T1E38T1"]
["T1E38T1"]
["T1E38T1"]
["T1E38T1"]
["T1E38T1"]
["T1E38T1"]
["T1E38T1"]
["T1E38T1"]
["T1E38T1"]
["T1E38T1"]
["T1E38T1"]
["T40"]
[]
["T40","Level 11","Name"]
["T1X1E37T1",null,"Comments"]
["T1E38T1",null,"Diamond Value"]
["T1E38T1",null,"Extra Diamonds"]
["T1E38T1",null,"Diamonds Needed"]
["T1E38T1",null,"Time"]
["T1E38T1",null,"Ameba Time"]
["T1E38T1",null,"High Score"]
["T1E38T1",null,"High Score Name"]
["T1E38T1"]
["T1E38T1"]
["T1E38T1"]
["T1E38T1"]
["T1E38T1"]
["T1E38T1"]
["T1E38T1"]
["T1E38T1"]
["T1E38T1"]
["T1E38T1"]
["T1E38T1"]
["T1E37P1T1"]
["T40"]
[]
["T40","Level 12","Name"]
["T1X1E37T1",null,"Comments"]
["T1E38T1",null,"Diamond Value"]
["T1E38T1",null,"Extra Diamonds"]
["T1E38T1",null,"Diamonds Needed"]
["T1E38T1",null,"Time"]
["T1E38T1",null,"Ameba Time"]
["T1E38T1",null,"High Score"]
["T1E38T1",null,"High Score Name"]
["T1E38T1"]
["T1E38T1"]
["T1E38T1"]
["T1E38T1"]
["T1E38T1"]
["T1E38T1"]
["T1E38T1"]
["T1E38T1"]
["T1E38T1"]
["T1E38T1"]
["T1E38T1"]
["T1E37P1T1"]
["T40"]
[]
["T40","Level 13","Name"]
["T1X1E37T1",null,"Comments"]
["T1E38T1",null,"Diamond Value"]
["T1E38T1",null,"Extra Diamonds"]
["T1E38T1",null,"Diamonds Needed"]
["T1E38T1",null,"Time"]
["T1E38T1",null,"Ameba Time"]
["T1E38T1",null,"High Score"]
["T1E38T1",null,"High Score Name"]
["T1E38T1"]
["T1E38T1"]
["T1E38T1"]
["T1E38T1"]
["T1E38T1"]
["T1E38T1"]
["T1E38T1"]
["T1E38T1"]
["T1E38T1"]
["T1E38T1"]
["T1E38T1"]
["T1E37P1T1"]
["T40"]
[]
["T40","Level 14","Name"]
["T1X1E37T1",null,"Comments"]
["T1E38T1",null,"Diamond Value"]
["T1E38T1",null,"Extra Diamonds"]
["T1E38T1",null,"Diamonds Needed"]
["T1E38T1",null,"Time"]
["T1E38T1",null,"Ameba Time"]
["T1E38T1",null,"High Score"]
["T1E38T1",null,"High Score Name"]
["T1E38T1"]
["T1E38T1"]
["T1E38T1"]
["T1E38T1"]
["T1E38T1"]
["T1E38T1"]
["T1E38T1"]
["T1E38T1"]
["T1E38T1"]
["T1E38T1"]
["T1E38T1"]
["T1E37P1T1"]
["T40"]
[]
["T40","Level 15","Name"]
["T1X1E37T1",null,"Comments"]
["T1E38T1",null,"Diamond Value"]
["T1E38T1",null,"Extra Diamonds"]
["T1E38T1",null,"Diamonds Needed"]
["T1E38T1",null,"Time"]
["T1E38T1",null,"Ameba Time"]
["T1E38T1",null,"High Score"]
["T1E38T1",null,"High Score Name"]
["T1E38T1"]
["T1E38T1"]
["T1E38T1"]
["T1E38T1"]
["T1E38T1"]
["T1E38T1"]
["T1E38T1"]
["T1E38T1"]
["T1E38T1"]
["T1E38T1"]
["T1E38T1"]
["T1E38T1"]
["T40"]
[]
["T40","Level 16","Name"]
["T1X1E37T1",null,"Comments"]
["T1E38T1",null,"Diamond Value"]
["T1E38T1",null,"Extra Diamonds"]
["T1E38T1",null,"Diamonds Needed"]
["T1E38T1",null,"Time"]
["T1E38T1",null,"Ameba Time"]
["T1E38T1",null,"High Score"]
["T1E38T1",null,"High Score Name"]
["T1E38T1"]
["T1E38T1"]
["T1E38T1"]
["T1E38T1"]
["T1E38T1"]
["T1E38T1"]
["T1E38T1"]
["T1E38T1"]
["T1E38T1"]
["T1E38T1"]
["T1E38T1"]
["T1E38T1"]
["T40"]
[]
["T40","Level 17","Name"]
["T1X1E37T1",null,"Comments"]
["T1E38T1",null,"Diamond Value"]
["T1E38T1",null,"Extra Diamonds"]
["T1E38T1",null,"Diamonds Needed"]
["T1E38T1",null,"Time"]
["T1E38T1",null,"Ameba Time"]
["T1E38T1",null,"High Score"]
["T1E38T1",null,"High Score Name"]
["T1E38T1"]
["T1E38T1"]
["T1E38T1"]
["T1E38T1"]
["T1E38T1"]
["T1E38T1"]
["T1E38T1"]
["T1E38T1"]
["T1E38T1"]
["T1E38T1"]
["T1E38T1"]
["T1E38T1"]
["T40"]
[]
["T40","Level 18","Name"]
["T1X1E37T1",null,"Comments"]
["T1E38T1",null,"Diamond Value"]
["T1E38T1",null,"Extra Diamonds"]
["T1E38T1",null,"Diamonds Needed"]
["T1E38T1",null,"Time"]
["T1E38T1",null,"Ameba Time"]
["T1E38T1",null,"High Score"]
["T1E38T1",null,"High Score Name"]
["T1E38T1"]
["T1E38T1"]
["T1E38T1"]
["T1E38T1"]
["T1E38T1"]
["T1E38T1"]
["T1E38T1"]
["T1E38T1"]
["T1E38T1"]
["T1E38T1"]
["T1E38T1"]
["T1E38T1"]
["T40"]
[]
["T40","Level 19","Name"]
["T1X1E37T1",null,"Comments"]
["T1E38T1",null,"Diamond Value"]
["T1E38T1",null,"Extra Diamonds"]
["T1E38T1",null,"Diamonds Needed"]
["T1E38T1",null,"Time"]
["T1E38T1",null,"Ameba Time"]
["T1E38T1",null,"High Score"]
["T1E38T1",null,"High Score Name"]
["T1E38T1"]
["T1E38T1"]
["T1E38T1"]
["T1E38T1"]
["T1E38T1"]
["T1E38T1"]
["T1E38T1"]
["T1E38T1"]
["T1E38T1"]
["T1E38T1"]
["T1E38T1"]
["T1E37P1T1"]
["T40"]
[]
["T40","Level 20","Name"]
["T1X1E37T1",null,"Comments"]
["T1E38T1",null,"Diamond Value"]
["T1E38T1",null,"Extra Diamonds"]
["T1E38T1",null,"Diamonds Needed"]
["T1E38T1",null,"Time"]
["T1E38T1",null,"Ameba Time"]
["T1E38T1",null,"High Score"]
["T1E38T1",null,"High Score Name"]
["T1E38T1"]
["T1E38T1"]
["T1E38T1"]
["T1E38T1"]
["T1E38T1"]
["T1E38T1"]
["T1E38T1"]
["T1E38T1"]
["T1E38T1"]
["T1E38T1"]
["T1E38T1"]
["T1E37P1T1"]
["T40"]
[]
["T40"]
["T1X1E37T1"]
["T1E38T1"]
["T1E38T1"]
["T1E38T1"]
["T1E38T1"]
["T1E38T1"]
["T1E38T1",null,null,4140]
["T1E38T1"]
["T1E38T1"]
["T1E38T1"]
["T1E38T1"]
["T1E38T1"]
["T1E38T1"]
["T1E38T1"]
["T1E38T1"]
["T1E38T1"]
["T1E38T1"]
["T1E38T1"]
["T1E38T1"]
["T1E38T1"]
["T40"]
["E40"]
["T40"]
["T1D1R1D2R1D2W1D1R1D3C1D1W1D3E1D1R1D1W1R1D6W1D2R2D2T1"]
["T1D7W1D6R1W1R2D1E1D3W1E1D2C1D3W1D4R1D1T1"]
["T1E38T1"]
["T1C1D6W1D1R1D4R1W1D1R1D1E1D2E1W1D2R1D2C1D1W1D2R1D1R1D1T1"]
["T1D7W1D1R1D4R1W1D1R1D1E1R1D2W1D5R1D1W1D3E1D2T1"]
["T1W19E1W18T1"]
["T1D4R2D1W1D2R1D4W1D3E1D2R1W1D4R1D2W1D5R1T1"]
["T1D7W1D2E1D4W1D3E1D3W1D4R1D1E1W1D5R1T1"]
["T1E38T1"]
["T1R1D2R1D3W1D4R1D2W1D2R1E1D3W1D6C1W1R1D5T1"]
["T1R1D4R1D1W1D2R1D2R1D1W1D3E1D1E1R1W1D7W1R1D3R1D1T1"]
["T1D1R1D5W1D3R1D3W1D3E1D1E1R1W1D7W1E1R1D2R1D1T1"]
["T1W19E1W18T1"]
["T1R1D1E2F1D2W1D4R1D1R1W1D3E1D3W1D1R1C1D2R1D1W1D6T1"]
["T1D5R1D1W1R1D6W1D2C1E1D3W1E1D2R1D3W1D1R1D1R2D1T1"]
["T1E38T1"]
["T1C1D2E1D1R1D1W1R1D4R1D1W1D1R1D1E1D2R1W1D1R1D1R1D3W1D6T1"]
["T1D5R1D1W1R1D2C1D3W1D3E1R1D2W1D2R1D4W1D3R2E1T1"]
["T1D1C1D3E1R1W1D2R1D4W1D1X1C1E1R1D2W1D1E1D5W1D3R2E1T1"]
["T1D1R1D4E1W1D2E1D2R1D1W1D1P1D1E1D3W1D4R1D1R1W1D4E1D1T1"]
["T40"]
["E40"]
["T40"]
["T1R1D1W2D1W1R2D1W1D3R1W1R1D2R1D4W1D3R1D5R1W1D1C1D1T1"]
["T1D2X1W1D1C1D1R1D1W1D3W3D2W1D1R1D4R1D2R1D1R1D3W1D1W1R1T1"]
["T1D4W1D2R1C1D2R1D4W1D5R1D1W2R1D7W1D1W2T1"]
["T1C1D1W1D2W1R1W1R1D2R1D4W1D3R1D6R1D1R2D6W1T1"]
["T1R1D1W1D3W1D2R1D1W2D2R1D1W2C1D7R1D1R2D6W1T1"]
["T1R2D2R1D4W1D3R1D6R1D1R2D6R1D2C1W2D2T1"]
["T1D2R1D1W2D2R1D1R2D3W1D4R1D1R2D6W1D2R1D1W1D1R1T1"]
["T1D2W1D3C1D6C1D1R1D2W2R1D2R1D1W1D1W1R1D2W1R1D2C1D1R1T1"]
["T1R1D1R1D4W1D1W2D2C1D1R1D2W2R1D2R1D2C1D1W1D3W1D2R1D1W1T1"]
["T1D1R1D1W2D5R2W1R1D2C1D1W1D1W1R1D2W1R1D3W1R1D2C1D1R1D2T1"]
["T1W1D1W2D6R2W1R1D2R1D1W1D1W2D3W1D2R1D1W2D2R1D1W2T1"]
["T1D1W1D1R1D1R1D1W1D3W2R1D2R1D4W1D3R1D5W2D1R1D1W2T1"]
["T1D1W1D1R1D1R1D1W1D1C1D1W1D1W1R1D2W1R1D4R1D2R1D1R2D4W1D3T1"]
["T1W1D2W1R1W1R1D2R1D4W1D3C1D3W1D1R1W1D6W1D1W2D1C1T1"]
["T1W1D3W2R1D2W1D1C1D3W1R1D2R1D1R1D3R1D1W1R1D6W1D1P1T1"]
["T1W1D1C1D4R1D1W2D2R1D1W2R1D7R1D1W1R1D6W1D2T1"]
["T1D2R1D4W1D3R1D6R1D1R2D6W1D2R1D1W1D3W1T1"]
["T1R1D1W2D2R1D1W2D3W1D4R1D1R2D6W1D2R1C1D2R1D2T1"]
["T1W1D3R1D6R1D1R1C1D6R1D3W2D2W1R1D2C1D1W1D2T1"]
["T1R2D3W1D5R1D1R1C1D6W1D2R1D1W1C1D1C1D1R1W1D1R1D3T1"]
["T40"]
["E40"]
["T40"]
["T1X1D5R1D20R1D8R1D1T1"]
["T1D5R1D14R1D17T1"]
["T1D8R1D2R1D26T1"]
["T1R1D37T1"]
["T1D19R1D18T1"]
["T1D1R1D21R1D9R1D4T1"]
["T1D2R1D5R1D11R1D2R1D13R1T1",null,null,4830]
["T1D6R1D6R1D21R1D2T1",null,null,"Owen Morgan"]
["T1D7E2M1E1D2R1D1E2M1E1D4E2M1E1D4E2M1E1D3T1"]
["T1D7E4D2R1D1E4D4E4D4E4R1D2T1"]
["T1D38T1"]
["T1D3R1D30R1D3T1"]
["T1D3R1D5R1D28T1"]
["T1D6R1D11R1D18R1T1"]
["T1D11R1D7R1D18T1"]
["T1D2R1D14R1D20T1"]
["T1D21R1D9R1D6T1"]
["T1D32R1D2R1D2T1"]
["T1D4R1D6R1D1R2D18R1D4T1"]
["T1D11R1D1R2D9R1D2R1D1R1D7P1T1"]
["T40"]
["E40"]
["T40"]
["T1E19T20"]
["T1E9R1E9T20"]
["T1E2X1E6D1E9T20"]
["T1E19T20"]
["T1E19T20"]
["T1E19T20"]
["T1E19T20"]
["T1E19T20"]
["T1E19T20"]
["T1E17P1M1T20"]
["T40"]
["T40"]
["T40"]
["T40"]
["T40"]
["T40"]
["T40"]
["T40"]
["T40"]
["T40"]
["T40"]
["E40"]
["T40"]
["T1X1D37T1"]
["T1D38T1"]
["T1D38T1"]
["T1D38T1"]
["T1D38T1"]
["T1D38T1"]
["T1D38T1"]
["T1D7E3D5E3D5E3D5E3D4T1"]
["T1D7E2F1D5E2F1D5E2F1D5E2F1D4T1"]
["T1D7E1C1E1D5E1C1E1D5E1C1E1D5E1C1E1D4T1"]
["T1D38T1"]
["T1D38T1"]
["T1D38T1"]
["T1D7E3D5E3D5E3D5E3D4T1"]
["T1D7E2F1D5E2F1D5E2F1D5E2F1D4T1"]
["T1D7E1C1E1D5E1C1E1D5E1C1E1D5E1C1E1D4T1"]
["T1D38T1"]
["T1D38T1"]
["T1D38T1"]
["T1D37P1T1"]
["T40"]
["E40"]
["T40"]
["T1W9D4R1D1R1D2R1D8R1D1W9T1"]
["T1E9D11R1D4R1D3E9T1"]
["T1E2C1E1F1E4D2R1D10R1D3R1D2E4F1E1C1E2T1"]
["T1W9D2R1D8R1D6R1D1W9T1"]
["T1E9D6R1D3R1D7R1D1E9T1"]
["T1E2C1E1F1E4D4R1D6R1D1R2D5E4F1E1C1E2T1"]
["T1W9D1R2D8R1D1R2D5W9T1"]
["T1E9D4R1D1R1D4R1D2R1D5E9T1"]
["T1E2C1E1F1E4D4R1D1R1D4R1D2R1D2R1D2E4F1E1C1E2T1"]
["T1W9D1R2D1R1D2R1D4R1D3R1D3W9T1"]
["T1E9D1R2D1R1D2R1D12E9T1"]
["T1E2C1E1F1E4D4R1D2R1D8R1D3E4F1E1C1E2T1"]
["T1W9D5R1D3R1D4R1D2R1D2W9T1"]
["T1D4R1D1R1D2R1D8R1D5R1D12R1T1"]
["T1D6R1D4R1D4R1D2R1D1R1D3R1D2R1D9T1"]
["T1D2R1D4R1D5R1D3R1D7R1D2R1D9T1"]
["T1D2R1D8R1D6R1D1R2D9R1D6T1"]
["T1R1D1X1D3R1D11R1D1R2D9R2D2R1D1P1T1"]
["T1D4R1D6R1D1R2D6R1D8R1D2R1D4T1"]
["T1R2D9R1D1R2D9R1D2R1D1R1D1R1D2R1D3T1"]
["T40"]
["E40"]
["T40"]
["T1P1E1D2E1D1R2D5E1D2R1D1E1X1D4E1R2E1R1D2R1D1E1D1E2D1T1"]
["T1E1D2R1D1E1D2E1D1E2D4E1D1R1D1R1D1E1D3E2R1D2R1D1C1D2E1D1T1"]
["T1R1D5E2D1F1D1E2D3E1D1R1D1R1D1E1D3E1W11T1"]
["T1D1R1D1C1D3E1D1E2D6E1D2R2D2R1D4E1D1E1D3E1D1E1T1"]
["T1W12D1R1D1E1D2E3R1D2E1D4E1D3R1D4T1"]
["T1R1D1E1R1D6E1D2R1D1E1D3E1D2R1D1E2D2R1D1E2F1D5T1"]
["T1R1D1E1R1D6E1D2E1R1D2R1D4E1D3R1D6R1D1R2D1T1"]
["T1D3E1D2R1E2D3E1D2R1D1E2D2R1D1E2D3E1D4R1D1R2D1T1"]
["T1D3E1D2R1D1E1D1R1D4E1D3F1D6R1D1R1D2E2R1D2R1D1T1"]
["T1E2D2E1R1D4E1D2R1D1R1D4E1D1E2D7E2C1D2E1D1T1"]
["T1D1E1D3E1D2E1D1E2D2E1D1E2D5R2E1R1D2R1D1E1D1E1R1D2E1T1"]
["T1D2E1C1D2R1D1R1D4E1D1E2D6R1E2R1D2R1D1E1D1E2D3T1"]
["T1D1R1D1E2D2R1D1E2D3E1D1R1D1R1D1E1D3E2R1D2E1D4E1D3T1"]
["T1D4E2D1R1D1E2D3E1D1R1D1R1D1E1D1R1D1E1D1E1R1D2E1R1D4E1D1T1"]
["T1D1E2D4E1D4E2D2E1R1E1R1D2R1D4E1D3R1D3E1D1R1T1"]
["T1D5E1D1E2D1R2D1E1D3E2R1D2E1D1R1D3E1R1D2R1D1R1D3T1"]
["T1E1R1D6E1D2R1D1E1D1R1D4E1D1E2D2R1D1E2R1D7T1"]
["T1E1R1D6E1D2E1R1D2R1D4E1D3R1D6R1D1R2D3T1"]
["T1D1E1D2R1D1E1D3E1D2R1D1E2D1A2D1E2D3E1D4R1D1R2D3T1"]
["T1D1E1D1C1R1F1D2R1D4E1D3R1D6R1D1R1F1D5C1R1D3T1"]
["T40"]
["E40"]
["T40"]
["T1E1D1E1R1D2E1D1E1D2E1D2R1D1E1D2X1E1D2R1D1E2D2R1D1E1R1D3E1D1T1"]
["T1D1R1D1R2D6E1D2R1D3R1D4E1D3R1D5C1R1D1R1D1T1"]
["T1E1R1D2R1D3E2D3R1D2R1D1E1D2R1D1R1D3W11T1"]
["T1D3C1E1D2R1D1E1F1D5R1D5E1D8R2E1R1D2R1T1"]
["T1W12D2R1D1R1D4E1D1E2D6R1E2R1D2R1T1"]
["T1D1E2D3E1D2R1D1E2D2R1D1E2D4E1R3D5E2R1D2E1T1"]
["T1D3E1R1D3E1F1D2E1D2R1D1E2D5R1D1R2D2R1D1E1D1E1R1D2T1"]
["T1D2R1D1E1D2R1D1E1R1D4E1D5E1D3R1E1R1D2R1D4E1D2T1"]
["T1D5R1E1D6E1D1E2F1R2D1E1D3E2R1D2E1D1R1D4R1T1"]
["T1R1D1R1D3E1D1E1R1D6E1D2R1D3R1D4R1D4C1R1D1E2T1"]
["T1D6R1D1E1R1D9E1R1D2R1D3W11T1"]
["T1D1R2D6E1D2R1D1E1D3E1D2R1D1E2D2R1D1E2D3E1R1D2T1"]
["T1W12R1D8E1D3R1D6R1D1R2D2T1"]
["T1D2R1D3E2D3C1D2R1D1E1D2R1D1R2D9R1D1R2D2T1"]
["T1D2E1D2R1D1E1D1R1D3Z8D9E2R1D2R1D2T1"]
["T1R1P1D1E1R1D4R1D2R1E1R1D3C1E1D2E1D7E2R1D2R1D2T1"]
["T1E1D3E1D2R1D1E1D3R1D1E2D5R4D2R1D1E1D1E1R1D2E1R1T1"]
["T1D1E1R1D2F1D1R1D4E1D1E2D6R2E1R1D2R1D3E2D3R1T1"]
["T1R1D1E2D2R1D1E2D5R1D1R1D1E1D3E2R1D2R1D4E1D3R1T1"]
["T1D3E2D1R1D1R1E1D5R1D1R1D5E3D2E1D1R1D4R1D2T1"]
["T40"]
["E40"]
["T40"]
["T1R1F1D15R1D1T20"]
["T1X1R1F1D13R1P1D1T20"]
["T1C1D1R1F1D11R1D1C1D1T20"]
["T1R1C1D1R1F1D9R1D1C1R1D1T20"]
["T1D1R1C1D1R1F1D7R1D1C1R1D2T20"]
["T1D2R1C1D1R1F1D5R1D1C1R1D3T20"]
["T1D3R1C1D1R1F1D3R1D1C1R1D4T20"]
["T1D4R1C1D1R1F1D1R1D1C1R1D5T20"]
["T1D5R1C1D1R2D1C1R1D6T20"]
["T1D6R1C1D2C1R1D7T20"]
["T40"]
["T40"]
["T40"]
["T40"]
["T40"]
["T40"]
["T40"]
["T40"]
["T40"]
["T40"]
["T40"]
["E40"]
["T40"]
["T1C3R2C2R1C2R1D1R4C1R1C2D1C2R1C2R1C4R2C1R1C1R2T1"]
["T1C1R2C3R3C1R1C2R6C1R2C1D1C1R1C1R4C1R1C2R2C1T1"]
["T1C2R7C1R1C2R2D1R3C1R2C3R1C1R1D1R2C1R3C2R1T1"]
["T1R2C1R1C2R6C1R2C3D2C2R2C1R1C2R2C1R1C2D1R2C1T1"]
["T1R2C1R1C2R6C1R2C1D1C1R1C1R4C1R1C1R1C1R2C2R2C1R1C1T1"]
["T1C3R2C1R1C1D1C2R2C2R2C3R2C1R1C1R3D1C1R1C2R2C1R1C1T1"]
["T1R5C1R2C4D2R3C1R1C2D1R1C1R1C2R1D1R2C6R1T1"]
["T1C1R1C2W7D1W5C1R4C1R1W6D1W6R1T1"]
["T1C1D1C2W1E11W1R1C2R3C1W1E11W1R1T1"]
["T1C1R1C1R1W1E1X1P1E8W1R1C2R3C1W1E11W1R1T1"]
["T1C1R2C1W1E11W1R1D1R2C2R1W1E11W1R1T1"]
["T1C1R2C1W1E11W1C4R1C1R1W1E11W1C1T1"]
["T1R1C3W1E11W1C1R2C1D1C1R1W1E11W1C1T1"]
["T1R4W1E11W1C1R2C2R2W1E11W1R1T1"]
["T1C1R1C2W1E11W1D1R1C1R2C1R1W1E11W1R1T1"]
["T1C1R1C2W1E11W9E11W1R1T1"]
["T1R3C1W1E31W1R1T1"]
["T1R3C1W1E11W1C2D1R1C1R1C1W1E11W1R1T1"]
["T1C2R2W1E11W1R3C1R1C2W1E11W1R1T1"]
["T1C2D2W13C1R3C3W13C1T1"]
["T40"]
["E40"]
["T40"]
["T1D12X1D25T1"]
["T1W12E1W8D17T1"]
["T1W1D4C1D13C1W1D17T1"]
["T1W1D1W1E1W1D1W6E1W6D1W1D17T1"]
["T1W1D1W1F1W1D1W1C1D9C1W1D1W1D17T1"]
["T1W1D1W1F1W1D1W1D1W4E1W4D1W1D1W1D17T1"]
["T1W1D1W1F1W1D1W1D1W1C1D5C1W1D1W1D1W1D17T1"]
["T1W1D1W1F1W1D1W1D1W1D1W2E1W2D1W1D1W1D1W1D17T1"]
["T1W1D1W1F1W1E1W1E1W1E1W1E3W1E1W1E1W1E1W1D17T1"]
["T1W1D1W1F1W1F1W1F1W1F1W1F3W1F1W1F1W1F1W1D17T1"]
["T1W1D1W1F1W1E1W1E1W1E1W1E3W1E1W1E1W1E1W1D17T1"]
["T1W1D1W1F1W1D1W1D1W1D1W5D1W1D1W1D1W1D17T1"]
["T1W1D1W1F1W1D1W1D1W1C1D5C1W1D1W1D1W1D17T1"]
["T1W1D1W1C1W1D1W1D1W9D1W1D1W1D17T1"]
["T1W1D1W1C1W1D1W1C1D9C1W1D1W1D17T1"]
["T1W1D1W1C1W1D1W13D1W1D17T1"]
["T1W1P1W1C1W1C1D13C1W1D17T1"]
["T1W21D17T1"]
["T1D38T1"]
["T1D38T1"]
["T40"]
["E40"]
["T40"]
["T1R1D1R1C1D1R3D1W1D3C1R2D2R1W1D3C1D3R1D1W1D3C1R1D1R1D1T1"]
["T1D3E1D1R1D1R1D1W1D3R1E1R1D2R1W1R1D4R1D2R1W1R1D3R1D1R2T1"]
["T1D4E1D2R2W1D1R1D4R1D2W1D2R1D1E1R2D2W1D4R1D1R2T1"]
["T1R1D1R1D2E1R3W1D1R1D4E1D2W1R1D6R1D1W1R1D6R1T1"]
["T1R1D1E1D3R1D2W1D1E2D2R1D1R2W1D7R1D1W1R1D6E1T1"]
["T1R2D2R1D4W1D3R1D5W1R1D1R2D5W1R1D2R1E1R1D2T1"]
["T1D2R1D1R2D2R1W1R2D3R1D3W1R1D1R2D5W1R1D2R1D1E1D1W1T1"]
["T1D2R1D3R1D2W1D3R1D1R1D2R1W1R1D2R1D1E1D1R2W1D1E1R1D2F1W1R1T1"]
["T1R1D1R1D1W9F1W9R1W9D2W1D1E1T1"]
["T1D1R1D1E2D5R4D2R1D1R1D1R2D2R2D3E1R1D2R1W1R1D2T1"]
["T1R1D1R2D6R4D2R1D1E1D1E1R1D3R1D2R1D1R2D1W1R1D1R2T1"]
["T1D1E1D1R1D1R1D1E1W1D2R3D2R1D4E1D3R1D5R1W1D1R1D1R2T1"]
["T1D1E1D1R1D1R1D1E1W1R1D1W17R2D1W1D2R1D3T1"]
["T1R1D2E1R3D1W1R1D4R1D3R1D3E1D1R2D4W1D1R1D1R2D1R1T1"]
["T1R1D3R3D1W1R1D1R1D3E1R1D2R1D1R1D3R1D1R2W1D5R1D1P1T1"]
["T1E1D1R1D4R1W1E2D2R1D1R3D7R1D1R1W1D6E1D2T1"]
["T1D2R1D4E1W1D2R1D6R1D1R2D5W1R1D2R1D1R1D3R1T1"]
["T1R1D1R2D2R1D1W1R1D3R1D4R1X1R2D6R1D2R1F1D2R1D2T1"]
["T1R1D3R1D3W1D2R1D1R1F1D6R1D3E1R1D2E1R1D2R1C1R1D2T1"]
["T1R2D1C1D1E1D2W1D2R1D1R2D6R1D2R1D1E1R1D1F1D1R2D1R1D3T1"]
["T40"]
["E40"]
["T40"]
["T1R1D1E1D3R2D5R1D1R1D2R1D8R1D5R1D2C1D1T1"]
["T1D5C1D1R1D7E1D4R1D4R1D2R1D5E1D2R1T1"]
["T1D7R1C1W1D1R1D1W1D2E1W1D3W1R1D3R1D2E4D1E1D2E1T1"]
["T1C1W11D1W1D3W1D2R1W1D5R1D1E2F1E1D5T1"]
["T1R1D8W1D3W1D1R1D1W1E1C1D1W1D5R1D10T1"]
["T1R2D2R1D4W1D3W1D3W1D2R1W1R2D6R1D2C1D4T1"]
["T1D2R1D5R1W1R2D1W1D3W1D2R1W1R2D9R1D3R1T1"]
["T1D1W11D1W1D1R1D1W1E1D1R1W1D1R1D4R1E4D2C1D1R1T1"]
["T1R1D1R1D6W1D3W1D1R1D1W1D2R1W1D1R1D2C1D2E2F1E1D2R1D2T1"]
["T1D1R1D7W1R2E1W1D2C1W1D2E1W1D3R1D7C1D1R1D2T1"]
["T1E1D8W1R2E1W1D2R1W1D3W1D3E1D2R1D5R1D3T1"]
["T1D1W15R1W1D3W1D3R1D8R1D1E2T1"]
["T1D3R1D1R1D3W1D3W1R1D2W1R1D2W1D1R1D2R1D1R1E4D5T1"]
["T1D4R1E1R1D2W1D3W1D3W1C1D2W1D2R1E1D3E2F1E1D4C1T1"]
["T1D4E1D1R1D2W1D1C1D1W1D2R1W1D1R1D1W1D3R1D1E1R1D9T1"]
["T1D1W11D1W1D3W1D3W1D3R1D1E1R1D9T1"]
["T1D2R1D6W1D1R1D1W1D3W1R1D1R1W1D6E1D2R1D6T1"]
["T1R1D1X1D3R1D1E1W1D3W1D3W1R1D1R1W1D9R1C1D2R1D1P1T1"]
["T1D4R1D4W1D1R1D1W1C1D2W1D3W1D4E1D3R1D2C1D1E1D2T1"]
["T1R2D7W1D1R1D1W1C1D2W1D3W1D2R1D2C1D1C1D1R1D2R1D3T1"]
["T40"]
["E40"]
["T40"]
["T1X1E37T1"]
["T1E38T1"]
["T1E38T1"]
["T1E38T1"]
["T1E38T1"]
["T1E38T1"]
["T1E38T1"]
["T1E38T1"]
["T1E38T1"]
["T1E38T1"]
["T1E38T1"]
["T1E38T1"]
["T1E38T1"]
["T1E38T1"]
["T1E38T1"]
["T1E38T1"]
["T1E38T1"]
["T1E38T1"]
["T1E38T1"]
["T1E37P1T1"]
["T40"]
["E40"]
["T40"]
["T1R1D5R2D1P1D5R1D1X1R1A1D7R1D8R1D1T1"]
["T1D5R1D1R1D12R1D4R1D2R1D1R1D7T1"]
["T1D8R1D2R1D14R1D11T1"]
["T1R1D7R1D11R1D6R1D2R1D7T1"]
["T1R1D8R1D5R1D3R1D7R1D2R1D7T1"]
["T1D1R1D2R1D8R1D6R1D1R2D9R1D4T1"]
["T1D2R1D5R1D11R1D1R2D9R1D3R1T1"]
["T1D6R1D6R1D1R1D4R1D2R1D8R1D2R1D2T1"]
["T1R1D1R1D10R1D1R1D10R1D11T1"]
["T1D10R2D1R1D2R1D4R1D3R1D4R1D2R1D1R1D2T1"]
["T1D10R1D2R1D2R1D11R1D5R1D3T1"]
["T1D3R1D1R1D7R1D11R1D8R1D3T1"]
["T1D3R1D1R1D3R1D4R1D3R1D7R1D11T1"]
["T1D4R1D1R1D2R1D8R1D5R1D12R1T1"]
["T1D6R1D4R1D4R1D2R1D1R1D6R1D9T1"]
["T1D2R1D1W30D4T1"]
["T1D2R1D1M30D4T1"]
["T1R1D3R30D1R1D2T1"]
["T1D38T1"]
["T1D1R1D32R1D3T1"]
["T40"]
["E40"]
["T40"]
["T1D2X1D35T1"]
["T1D38T1"]
["T1D38T1"]
["T1D38T1"]
["T1D21F1D1E1D1F1D1E1D1F1D1E1D6T1"]
["T1D21R1D1R1D1R1D1R1D1R1D1R1D6T1"]
["T1D38T1"]
["T1D38T1"]
["T1D9E1M1D1E1D1E1D1E1D1E1D1E1D17T1"]
["T1D9E2D1E1D1E1D1E1D1E1D1E1D17T1"]
["T1D9E2D1M1D1E1D1E1D1E1D1E1D17T1"]
["T1D9E2D1E1D1E1D1E1D1E1D1E1D17T1"]
["T1D9E2D1E1D1M1D1E1D1E1D1E1D17T1"]
["T1D9E2D1E1D1E1D1E1D1E1D1E1D17T1"]
["T1D9E2D1E1D1E1D1M1D1E1D1E1D17T1"]
["T1D9E2D1E1D1E1D1E1D1E1D1E1D17T1"]
["T1D9E2D1E1D1E1D1E1D1M1D1E1D17T1"]
["T1D9E2D1E1D1E1D1E1D1E1D1E1D17T1"]
["T1D9E2D1E1D1E1D1E1D1E1D1M1D17T1"]
["T1P1D37T1"]
["T40"]
["E40"]
["T40"]
["T1R1D1R2D2E2R1D2R1D2R1D1R1D2X1R1D2R1D1R2D2R1D1R2D3R1D1T1"]
["T1D1W1D1R2D6R1D2R1D3R1D4W1D3R1D6R1D1R1D1T1"]
["T1R2W1D1R1D3E1R1D2E1R1D2R1D1R1D2R1W1R1D4E1D2E1D2R1D1R1F1T1"]
["T1D3W1R1D2R1D1E1F1D5R1D1E1D2W1R1D1E2D5R4D2R1T1"]
["T1D1R2D1W1R2D3E1R1D2R1D1R1D3W1R1D1E1R1D6R4D2R1T1"]
["T1D1E1R1D2W1R1D2R1D1R1E1D2R1D1R2W1D3E1R3D1E1D3R3D2R1T1"]
["T1D3R2D1W1D1E1F1D2R1D2R1D1R1W1D5R1D1R2D2R1D1R1D1R2D2T1"]
["T1D2R1D1R1D2W1D1R2D4E1D1W1D3R1D2E1R3D2R1D4R1D2T1"]
["T1D3E1D1R2D1W1D4R1D1E1W1F1R2D1E1D3R3D2R1D1R1D3E1R1T1"]
["T1R1D1R1D3R1D1R1W1D5W1R1D2R1D1E1D1R1D4R1D1E2D2R1D1R2T1"]
["T1D6R1D1R2W1D3W1D1E1D2R2D2R1D4E1D3R1D5T1"]
["T1D1R2D6R1D4R1D3R1D2R1D1R1E1D2R1D1R2D3E1R1D2T1"]
["T1D1R2D6R1D1Z3D2R1D4R1D3R1D6R1D1R2D2T1"]
["T1D2R1D3E1R1D3R1D2R1D1R1D2R1D1R2D3E1D5R1D1R2D2T1"]
["T1D2R1D2R1D1E1D1R1D4R1D5R1D1E2D6R3D2R1D1E1T1"]
["T1R1D2E1R1D4R1D2R1D1R1D4R1D1E2D7R3D2R1D2T1"]
["T1R1D3R1D2R1D1E2D2R1D1E2D4E1R4D2R1D1R1D1R2D2R2T1"]
["T1D1E1R1D2F1E1R1D4R1D1R2D6R4D2R1D1E1D1R2D2E1R1T1"]
["T1R1D1R2D2R1D1R2D3E1D1R1D1R1D1E1D3R3D2R1D4E1D3R1T1"]
["T1D3R2D1R1D1R2D3E1D1R1D1R1D1P1D3R1E1R1D2R1D1R1D4R1D2T1"]
["T40"]
["E40"]
["T40"]
["T1D6E1D2C1D1R1E1D5R1D1R1D7E1D4R1D4T1"]
["T1D1R1X1R1D6E1D9R1C1D2R1D4E1D5E1D2T1"]
["T1D10E1D2R1D5R1D1R1D2R1D8R1D4T1"]
["T1R1D1R2D9R1D6R1D2R1D4R1D3R1D5T1"]
["T1R1D1E1R1D9E1R1D2R1D8R1D6R1D1R2D1T1"]
["T1D3E1D2R1D8R1D5R1D1E1R1D8R1D1R2D1T1"]
["T1W30D3R1D2R1D1T1"]
["T1D1E1D3R1D2C1D1E1D2R1D1R1D10C1D1R1C1D6E1D1T1"]
["T1D2C1D5R1D5E1D8R2E1R1D2R1D4R1D3T1"]
["T1D3R1D2R1D1R1D14R1E1D1R1D2R1D8T1"]
["T1D1R1D5R1D8R3D7R1D2E1D1C1D4R1D1T1"]
["T1D1C1D2E1D2R1D1E2D5R1D1R1C1D2C1D4R1D3R1D2C1D1E1D1T1"]
["T1D1E1R1D14R1E1R1D2R1D8C1D5R1T1"]
["T1D8W30T1"]
["T1E1R1D9R1D3C1D4R1D5R1D3R1D7T1"]
["T1E1R1D9E1R1D2R1D8R1D6R1D1R2D2P1T1"]
["T1D1E1D2R1D8R1D5R1D1E2D4C1D3R1D1R2D3T1"]
["T1D4R1C1D2R1D8R1D6R1D1R1C1D6R1D3T1"]
["T1D3E1D2R1D1E1D2R1D1R2D9R1D1R1C1D6E1D2R1T1"]
["T1D1C1D4E1D5E1D9E1D1R1D2R1D4R1D3R1D1T1"]
["T40"]
["E40"]
["T40"]
["T1D2X1D7R3D6T20"]
["T1D10R3D6T20"]
["T1D19T20"]
["T1D10Z3D6T20"]
["T1D7R1D2E3D6T20"]
["T1D8R1D1E3D6T20"]
["T1D9R1E3D6T20"]
["T1D8P1D1Z3D4E1D1T20"]
["T1D10E3D6T20"]
["T1D10E3D6T20"]
["T40"]
["T40"]
["T40"]
["T40"]
["T40"]
["T40"]
["T40"]
["T40"]
["T40"]
["T40"]
["T40"]

{"sheet":"Editor","index":3,"n_rows":46,"n_cols":42,"rows_kept":46,"cut":false,"hidden":false,"merged":[]}
["T","T","T","T","T","T","T","T","T","T","T","T","T","T","T","T","T","T","T","T","T","T","T","T","T","T","T","T","T","T","T","T","T","T","T","T","T","T","T","T","GamePack Name","Original"]
["T","D","D","D","D","D","D",null,"D","D","C","D","R",null,"D","D","D","D","D","R","D","R","D","D","D","D","D","D","D",null,"D","D","D","D","R","D","D","D","D","T","Level Number",1]
["T","D","R","X","R","D","D","D","D","D","D",null,"D","D","D","D","D","D","D","D","D","R","C","D","D","R","D","D","D","D",null,"D","D","D","D","D",null,"D","D","T","Level Name","Cave A: Intro"]
["T","D","D","D","D","D","D","D","D","D","D",null,"D","D","R","D","D","D","D","D","R","D","R","D","D","R","D","D","D","D","D","D","D","D","R","D","D","D","D","T","Level Time",150]
["T","R","D","R","R","D","D","D","D","D","D","D","D","D","R","D","D","D","D","D","D","R","D","D","R","D","D","D","D","R","D","D","D","R","D","D","D","D","D","T","Amoeba Time",0]
["T","R","D",null,"R","D","D","D","D","D","D","D","D","D",null,"R","D","D","R","D","D","D","D","D","D","D","D","R","D","D","D","D","D","D","R","D","R","R","D","T","Diamonds Needed",12]
["T","D","D","D",null,"D","D","R","D","D","D","D","D","D","D","D","R","D","D","D","D","D","R","D",null,"R","D","D","D","D","D","D","D","D","R","D","R","R","D","T","Level Comments","Pick up jewels and exit before time is up"]
["T","W","W","W","W","W","W","W","W","W","W","W","W","W","W","W","W","W","W","W","W","W","W","W","W","W","W","W","W","W","W","D","D","D","R","D","D","R","D","T"]
["T","D",null,"D","D","D","R","D","D","C","D",null,"D","D","R","D","R","D","D","D","D","D","D","D","D","D","D","C","D","R","C","D","D","D","D","D","D",null,"D","T"]
["T","D","D","C","D","D","D","D","D","R","D","D","D","D","D",null,"D","D","D","D","D","D","D","D","R","R",null,"R","D","D","R","D","D","D","D","R","D","D","D","T"]
["T","D","D","D","R","D","D","R","D","R","D","D","D","D","D","D","D","D","D","D","D","D","D","D","R",null,"D","R","D","D","R","D","D","D","D","D","D","D","D","T"]
["T","D","R","D","D","D","D","D","R","D","D","D","D","D","D","D","D","R","R","R","D","D","D","D","D","D","D","R","D","D",null,"D","C","D","D","D","D","R","D","T"]
["T","D","C","D","D",null,"D","D","R","D",null,null,"D","D","D","D","D","R","D","R","C","D","D","C","D","D","D","D","R","D","D","D","R","D","D","C","D",null,"D","T"]
["T","D",null,"R","D","D","D","D","D","D","D","D","D","D","D","D","D","D","R",null,"R","D","D","R","D","D","D","D","D","D","D","D","C","D","D","D","D","D","R","T"]
["T","D","D","D","D","D","D","D","D","W","W","W","W","W","W","W","W","W","W","W","W","W","W","W","W","W","W","W","W","W","W","W","W","W","W","W","W","W","W","T"]
["T",null,"R","D","D","D","D","D","D","D","D","D","R","D","D","D","C","D","D","D","D","R","D","D","D","D","D","R","D","D","D","R","D","D","D","D","D","D","D","T"]
["T",null,"R","D","D","D","D","D","D","D","D","D",null,"R","D","D","R","D","D","D","D","D","D","D","D","R","D","D","D","D","D","D","R","D","R","R","D","D","P","T"]
["T","D",null,"D","D","R","D","D","D","D","D","D","D","D","R","D","D","D","D","D","R","D",null,null,"D","D","D","D","C","D","D","D","R","D","R","R","D","D","D","T"]
["T","D","D","D","D","R","C","D","D","R","D","D","D","D","D","D","D","D","R","D","D","D","D","D","D","R","D","R","C","D","D","D","D","D","D","R","D","D","D","T"]
["T","D","D","D",null,"D","D","R","D",null,"D","D","R","D","R","R","D","D","D","D","D","D","D","D","D","R","D","R","C","D","D","D","D","D","D",null,"D","D","R","T"]
["T","D","C","D","D","D","D",null,"D","D","D","D","D",null,"D","D","D","D","D","D","D","D","D",null,"D","R","D","D","R","D","D","D","D","R","D","D","D","R","D","T"]
["T","T","T","T","T","T","T","T","T","T","T","T","T","T","T","T","T","T","T","T","T","T","T","T","T","T","T","T","T","T","T","T","T","T","T","T","T","T","T","T"]
["Below is the Blank 'Reset' Level Cave"]
["T","T","T","T","T","T","T","T","T","T","T","T","T","T","T","T","T","T","T","T","T","T","T","T","T","T","T","T","T","T","T","T","T","T","T","T","T","T","T","T"]
["T","X",null,null,null,null,null,null,null,null,null,null,null,null,null,null,null,null,null,null,null,null,null,null,null,null,null,null,null,null,null,null,null,null,null,null,null,null,null,"T"]
["T",null,null,null,null,null,null,null,null,null,null,null,null,null,null,null,null,null,null,null,null,null,null,null,null,null,null,null,null,null,null,null,null,null,null,null,null,null,null,"T"]
["T",null,null,null,null,null,null,null,null,null,null,null,null,null,null,null,null,null,null,null,null,null,null,null,null,null,null,null,null,null,null,null,null,null,null,null,null,null,null,"T"]
["T",null,null,null,null,null,null,null,null,null,null,null,null,null,null,null,null,null,null,null,null,null,null,null,null,null,null,null,null,null,null,null,null,null,null,null,null,null,null,"T"]
["T",null,null,null,null,null,null,null,null,null,null,null,null,null,null,null,null,null,null,null,null,null,null,null,null,null,null,null,null,null,null,null,null,null,null,null,null,null,null,"T"]
["T",null,null,null,null,null,null,null,null,null,null,null,null,null,null,null,null,null,null,null,null,null,null,null,null,null,null,null,null,null,null,null,null,null,null,null,null,null,null,"T"]
["T",null,null,null,null,null,null,null,null,null,null,null,null,null,null,null,null,null,null,null,null,null,null,null,null,null,null,null,null,null,null,null,null,null,null,null,null,null,null,"T"]
["T",null,null,null,null,null,null,null,null,null,null,null,null,null,null,null,null,null,null,null,null,null,null,null,null,null,null,null,null,null,null,null,null,null,null,null,null,null,null,"T"]
["T",null,null,null,null,null,null,null,null,null,null,null,null,null,null,null,null,null,null,null,null,null,null,null,null,null,null,null,null,null,null,null,null,null,null,null,null,null,null,"T"]
["T",null,null,null,null,null,null,null,null,null,null,null,null,null,null,null,null,null,null,null,null,null,null,null,null,null,null,null,null,null,null,null,null,null,null,null,null,null,null,"T"]
["T",null,null,null,null,null,null,null,null,null,null,null,null,null,null,null,null,null,null,null,null,null,null,null,null,null,null,null,null,null,null,null,null,null,null,null,null,null,null,"T"]
["T",null,null,null,null,null,null,null,null,null,null,null,null,null,null,null,null,null,null,null,null,null,null,null,null,null,null,null,null,null,null,null,null,null,null,null,null,null,null,"T"]
["T",null,null,null,null,null,null,null,null,null,null,null,null,null,null,null,null,null,null,null,null,null,null,null,null,null,null,null,null,null,null,null,null,null,null,null,null,null,null,"T"]
["T",null,null,null,null,null,null,null,null,null,null,null,null,null,null,null,null,null,null,null,null,null,null,null,null,null,null,null,null,null,null,null,null,null,null,null,null,null,null,"T"]
["T",null,null,null,null,null,null,null,null,null,null,null,null,null,null,null,null,null,null,null,null,null,null,null,null,null,null,null,null,null,null,null,null,null,null,null,null,null,null,"T"]
["T",null,null,null,null,null,null,null,null,null,null,null,null,null,null,null,null,null,null,null,null,null,null,null,null,null,null,null,null,null,null,null,null,null,null,null,null,null,null,"T"]
["T",null,null,null,null,null,null,null,null,null,null,null,null,null,null,null,null,null,null,null,null,null,null,null,null,null,null,null,null,null,null,null,null,null,null,null,null,null,null,"T"]
["T",null,null,null,null,null,null,null,null,null,null,null,null,null,null,null,null,null,null,null,null,null,null,null,null,null,null,null,null,null,null,null,null,null,null,null,null,null,null,"T"]
["T",null,null,null,null,null,null,null,null,null,null,null,null,null,null,null,null,null,null,null,null,null,null,null,null,null,null,null,null,null,null,null,null,null,null,null,null,null,null,"T"]
["T",null,null,null,null,null,null,null,null,null,null,null,null,null,null,null,null,null,null,null,null,null,null,null,null,null,null,null,null,null,null,null,null,null,null,null,null,null,"P","T"]
["T","T","T","T","T","T","T","T","T","T","T","T","T","T","T","T","T","T","T","T","T","T","T","T","T","T","T","T","T","T","T","T","T","T","T","T","T","T","T","T"]
["Below is the Cave in compiled format for use in testing the level"]

{"sheet":"Demo","index":4,"n_rows":76,"n_cols":50,"rows_kept":76,"cut":false,"hidden":true,"merged":[]}
["T40","Level 1","Name","Demo Level 1",null,null,null,null,null,null,null,null,null,null,null,null,null,null,null,null,null,null,null,null,null,null,null,null,null,null,null,null,null,null,null,null,null,null,null,null,null,null,null,null,"Level 1 Demo",null,null,"Level 2 Demo"]
["T12R1D1R1D1C1D1R1D1T20",null,"Comments",null,null,null,null,null,null,null,null,null,null,null,null,null,null,null,null,null,null,null,null,null,null,null,null,null,null,null,null,null,null,null,null,null,null,null,null,null,null,null,null,null,"Loop Time","Direction","Ctrl Key Pressed?","Loop Time","Direction","Ctrl Key Pressed?"]
["T12D1E1D2E1D3T20",null,"Diamond Value",10,null,null,null,null,null,null,null,null,null,null,null,null,null,null,null,null,null,null,null,null,null,null,null,null,null,null,null,null,null,null,null,null,null,null,null,null,null,null,null,null,"83 ",4,false,"19 ",2,false]
["T12X1D3E1D1F1D1T20",null,"Extra Diamonds",15,null,null,null,null,null,null,null,null,null,null,null,null,null,null,null,null,null,null,null,null,null,null,null,null,null,null,null,null,null,null,null,null,null,null,null,null,null,null,null,null,"86 ",4,false,"20 ",2,false]
["T12D4E1D1E1D1T20",null,"Diamonds Needed",10,null,null,null,null,null,null,null,null,null,null,null,null,null,null,null,null,null,null,null,null,null,null,null,null,null,null,null,null,null,null,null,null,null,null,null,null,null,null,null,null,"90 ",4,false,"25 ",4,false]
["T12D4E1D1E1D1T20",null,"Time",150,null,null,null,null,null,null,null,null,null,null,null,null,null,null,null,null,null,null,null,null,null,null,null,null,null,null,null,null,null,null,null,null,null,null,null,null,null,null,null,null,"101 ",2,true,"26 ",4,false]
["T1M1E9D5E1D1E1D1T20",null,"Magic Wall/Ameba Time",0,null,null,null,null,null,null,null,null,null,null,null,null,null,null,null,null,null,null,null,null,null,null,null,null,null,null,null,null,null,null,null,null,null,null,null,null,null,null,null,null,"105 ",3,false,"31 ",4,false]
["T1C1D12R1D1E1D1E1D1T20",null,null,null,null,null,null,null,null,null,null,null,null,null,null,null,null,null,null,null,null,null,null,null,null,null,null,null,null,null,null,null,null,null,null,null,null,null,null,null,null,null,null,null,"106 ",3,false,"35 ",1,false]
["T1D4C1D10E1D1E1D1T20",null,null,null,null,null,null,null,null,null,null,null,null,null,null,null,null,null,null,null,null,null,null,null,null,null,null,null,null,null,null,null,null,null,null,null,null,null,null,null,null,null,null,null,"107 ",3,false,"36 ",1,false]
["T1C1D7C1D1R1D4E1D1E1D1T20",null,null,null,null,null,null,null,null,null,null,null,null,null,null,null,null,null,null,null,null,null,null,null,null,null,null,null,null,null,null,null,null,null,null,null,null,null,null,null,null,null,null,null,"108 ",3,false,"37 ",1,false]
["T1D15E1D1E1P1T20",null,null,null,null,null,null,null,null,null,null,null,null,null,null,null,null,null,null,null,null,null,null,null,null,null,null,null,null,null,null,null,null,null,null,null,null,null,null,null,null,null,null,null,"109 ",3,false,"38 ",1,false]
["T40",null,null,null,null,null,null,null,null,null,null,null,null,null,null,null,null,null,null,null,null,null,null,null,null,null,null,null,null,null,null,null,null,null,null,null,null,null,null,null,null,null,null,null,"121 ",1,false,"39 ",1,false]
["T40",null,null,null,null,null,null,null,null,null,null,null,null,null,null,null,null,null,null,null,null,null,null,null,null,null,null,null,null,null,null,null,null,null,null,null,null,null,null,null,null,null,null,null,"122 ",1,false,"40 ",1,false]
["T40",null,null,null,null,null,null,null,null,null,null,null,null,null,null,null,null,null,null,null,null,null,null,null,null,null,null,null,null,null,null,null,null,null,null,null,null,null,null,null,null,null,null,null,"134 ",2,false,"41 ",1,false]
["T40",null,null,null,null,null,null,null,null,null,null,null,null,null,null,null,null,null,null,null,null,null,null,null,null,null,null,null,null,null,null,null,null,null,null,null,null,null,null,null,null,null,null,null,"138 ",2,false,"42 ",1,false]
["T40",null,null,null,null,null,null,null,null,null,null,null,null,null,null,null,null,null,null,null,null,null,null,null,null,null,null,null,null,null,null,null,null,null,null,null,null,null,null,null,null,null,null,null,"142 ",4,false,"47 ",3,false]
["T40",null,null,null,null,null,null,null,null,null,null,null,null,null,null,null,null,null,null,null,null,null,null,null,null,null,null,null,null,null,null,null,null,null,null,null,null,null,null,null,null,null,null,null,"143 ",4,false,"48 ",3,false]
["T40",null,null,null,null,null,null,null,null,null,null,null,null,null,null,null,null,null,null,null,null,null,null,null,null,null,null,null,null,null,null,null,null,null,null,null,null,null,null,null,null,null,null,null,"144 ",4,false,"49 ",3,false]
["T40",null,null,null,null,null,null,null,null,null,null,null,null,null,null,null,null,null,null,null,null,null,null,null,null,null,null,null,null,null,null,null,null,null,null,null,null,null,null,null,null,null,null,null,"149 ",1,false,"50 ",3,false]
["T40",null,null,null,null,null,null,null,null,null,null,null,null,null,null,null,null,null,null,null,null,null,null,null,null,null,null,null,null,null,null,null,null,null,null,null,null,null,null,null,null,null,null,null,"155 ",3,false,"54 ",1,false]
["T40",null,null,null,null,null,null,null,null,null,null,null,null,null,null,null,null,null,null,null,null,null,null,null,null,null,null,null,null,null,null,null,null,null,null,null,null,null,null,null,null,null,null,null,"160 ",4,false,"55 ",1,false]
["T40",null,null,null,null,null,null,null,null,null,null,null,null,null,null,null,null,null,null,null,null,null,null,null,null,null,null,null,null,null,null,null,null,null,null,null,null,null,null,null,null,null,null,null,"164 ",4,false,"59 ",1,false]
[null,null,null,null,null,null,null,null,null,null,null,null,null,null,null,null,null,null,null,null,null,null,null,null,null,null,null,null,null,null,null,null,null,null,null,null,null,null,null,null,null,null,null,null,"168 ",2,false,"64 ",1,false]
["T40","Level 2","Name","Demo Level 2",null,null,null,null,null,null,null,null,null,null,null,null,null,null,null,null,null,null,null,null,null,null,null,null,null,null,null,null,null,null,null,null,null,null,null,null,null,null,null,null,"169 ",2,false,"157 ",1,false]
["T12A2D6T20",null,"Comments",null,null,null,null,null,null,null,null,null,null,null,null,null,null,null,null,null,null,null,null,null,null,null,null,null,null,null,null,null,null,null,null,null,null,null,null,null,null,null,null,null,"174 ",2,false,"158 ",1,false]
["T12D1E1D6T20",null,"Diamond Value",10,null,null,null,null,null,null,null,null,null,null,null,null,null,null,null,null,null,null,null,null,null,null,null,null,null,null,null,null,null,null,null,null,null,null,null,null,null,null,null,null,"175 ",2,false,"184 ",2,false]
["T12E8T20",null,"Extra Diamonds",15,null,null,null,null,null,null,null,null,null,null,null,null,null,null,null,null,null,null,null,null,null,null,null,null,null,null,null,null,null,null,null,null,null,null,null,null,null,null,null,null,"176 ",2,false,"187 ",2,false]
["T12W4R1W3T20",null,"Diamonds Needed",10,null,null,null,null,null,null,null,null,null,null,null,null,null,null,null,null,null,null,null,null,null,null,null,null,null,null,null,null,null,null,null,null,null,null,null,null,null,null,null,null,"177 ",2,false,"190 ",3,false]
["T12D8T20",null,"Time",150,null,null,null,null,null,null,null,null,null,null,null,null,null,null,null,null,null,null,null,null,null,null,null,null,null,null,null,null,null,null,null,null,null,null,null,null,null,null,null,null,"178 ",2,false,"191 ",3,false]
["T1D5X1D3E1D5E1D3T20",null,"Magic Wall/Ameba Time",140,null,null,null,null,null,null,null,null,null,null,null,null,null,null,null,null,null,null,null,null,null,null,null,null,null,null,null,null,null,null,null,null,null,null,null,null,null,null,null,null,"179 ",2,false,"192 ",3,false]
["T1D3C1R1D1R1D6E1D1Z1D3T20",null,null,null,null,null,null,null,null,null,null,null,null,null,null,null,null,null,null,null,null,null,null,null,null,null,null,null,null,null,null,null,null,null,null,null,null,null,null,null,null,null,null,null,"180 ",2,false,"202 ",3,false]
["T1D4E1D6C1D3E1D3T20",null,null,null,null,null,null,null,null,null,null,null,null,null,null,null,null,null,null,null,null,null,null,null,null,null,null,null,null,null,null,null,null,null,null,null,null,null,null,null,null,null,null,null,"181 ",2,false,"205 ",2,false]
["T1D5C1D2C1D6E1D3T20",null,null,null,null,null,null,null,null,null,null,null,null,null,null,null,null,null,null,null,null,null,null,null,null,null,null,null,null,null,null,null,null,null,null,null,null,null,null,null,null,null,null,null,"182 ",2,false,"206 ",2,false]
["T1P1D14E1D3T20",null,null,null,null,null,null,null,null,null,null,null,null,null,null,null,null,null,null,null,null,null,null,null,null,null,null,null,null,null,null,null,null,null,null,null,null,null,null,null,null,null,null,null,"183 ",2,false,"207 ",2,false]
["T40",null,null,null,null,null,null,null,null,null,null,null,null,null,null,null,null,null,null,null,null,null,null,null,null,null,null,null,null,null,null,null,null,null,null,null,null,null,null,null,null,null,null,null,"186 ",4,false,"211 ",2,false]
["T40",null,null,null,null,null,null,null,null,null,null,null,null,null,null,null,null,null,null,null,null,null,null,null,null,null,null,null,null,null,null,null,null,null,null,null,null,null,null,null,null,null,null,null,"187 ",4,false,"215 ",4,false]
["T40",null,null,null,null,null,null,null,null,null,null,null,null,null,null,null,null,null,null,null,null,null,null,null,null,null,null,null,null,null,null,null,null,null,null,null,null,null,null,null,null,null,null,null,"188 ",4,false,"218 ",1,false]
["T40",null,null,null,null,null,null,null,null,null,null,null,null,null,null,null,null,null,null,null,null,null,null,null,null,null,null,null,null,null,null,null,null,null,null,null,null,null,null,null,null,null,null,null,"192 ",1,false,"221 ",2,false]
["T40",null,null,null,null,null,null,null,null,null,null,null,null,null,null,null,null,null,null,null,null,null,null,null,null,null,null,null,null,null,null,null,null,null,null,null,null,null,null,null,null,null,null,null,"193 ",1,false,"222 ",2,false]
["T40",null,null,null,null,null,null,null,null,null,null,null,null,null,null,null,null,null,null,null,null,null,null,null,null,null,null,null,null,null,null,null,null,null,null,null,null,null,null,null,null,null,null,null,"194 ",1,false,"224 ",4,false]
["T40",null,null,null,null,null,null,null,null,null,null,null,null,null,null,null,null,null,null,null,null,null,null,null,null,null,null,null,null,null,null,null,null,null,null,null,null,null,null,null,null,null,null,null,"199 ",3,false,"225 ",4,false]
["T40",null,null,null,null,null,null,null,null,null,null,null,null,null,null,null,null,null,null,null,null,null,null,null,null,null,null,null,null,null,null,null,null,null,null,null,null,null,null,null,null,null,null,null,"202 ",1,false,"228 ",1,false]
["T40",null,null,null,null,null,null,null,null,null,null,null,null,null,null,null,null,null,null,null,null,null,null,null,null,null,null,null,null,null,null,null,null,null,null,null,null,null,null,null,null,null,null,null,"203 ",1,false,"229 ",1,false]
["T40",null,null,null,null,null,null,null,null,null,null,null,null,null,null,null,null,null,null,null,null,null,null,null,null,null,null,null,null,null,null,null,null,null,null,null,null,null,null,null,null,null,null,null,"204 ",1,false,"230 ",1,false]
["T40",null,null,null,null,null,null,null,null,null,null,null,null,null,null,null,null,null,null,null,null,null,null,null,null,null,null,null,null,null,null,null,null,null,null,null,null,null,null,null,null,null,null,null,"205 ",1,false,"236 ",1,false]
[null,null,null,null,null,null,null,null,null,null,null,null,null,null,null,null,null,null,null,null,null,null,null,null,null,null,null,null,null,null,null,null,null,null,null,null,null,null,null,null,null,null,null,null,"210 ",4,false,"240 ",4,false]
[null,null,null,null,null,null,null,null,null,null,null,null,null,null,null,null,null,null,null,null,null,null,null,null,null,null,null,null,null,null,null,null,null,null,null,null,null,null,null,null,null,null,null,null,"214 ",1,false,"241 ",4,false]
[null,null,null,null,null,null,null,null,null,null,null,null,null,null,null,null,null,null,null,null,null,null,null,null,null,null,null,null,null,null,null,null,null,null,null,null,null,null,null,null,null,null,null,null,"215 ",1,false,"247 ",1,false]
[null,null,null,null,null,null,null,null,null,null,null,null,null,null,null,null,null,null,null,null,null,null,null,null,null,null,null,null,null,null,null,null,null,null,null,null,null,null,null,null,null,null,null,null,"217 ",3,false,"248 ",1,false]
[null,null,null,null,null,null,null,null,null,null,null,null,null,null,null,null,null,null,null,null,null,null,null,null,null,null,null,null,null,null,null,null,null,null,null,null,null,null,null,null,null,null,null,null,"218 ",3,false,"249 ",1,false]
[null,null,null,null,null,null,null,null,null,null,null,null,null,null,null,null,null,null,null,null,null,null,null,null,null,null,null,null,null,null,null,null,null,null,null,null,null,null,null,null,null,null,null,null,"219 ",3,false,"250 ",1,false]
[null,null,null,null,null,null,null,null,null,null,null,null,null,null,null,null,null,null,null,null,null,null,null,null,null,null,null,null,null,null,null,null,null,null,null,null,null,null,null,null,null,null,null,null,"221 ",1,false,"253 ",4,false]
[null,null,null,null,null,null,null,null,null,null,null,null,null,null,null,null,null,null,null,null,null,null,null,null,null,null,null,null,null,null,null,null,null,null,null,null,null,null,null,null,null,null,null,null,"222 ",1,false,"254 ",4,false]
[null,null,null,null,null,null,null,null,null,null,null,null,null,null,null,null,null,null,null,null,null,null,null,null,null,null,null,null,null,null,null,null,null,null,null,null,null,null,null,null,null,null,null,null,"223 ",1,false,"255 ",4,false]
[null,null,null,null,null,null,null,null,null,null,null,null,null,null,null,null,null,null,null,null,null,null,null,null,null,null,null,null,null,null,null,null,null,null,null,null,null,null,null,null,null,null,null,null,"224 ",1,false,"256 ",4,false]
[null,null,null,null,null,null,null,null,null,null,null,null,null,null,null,null,null,null,null,null,null,null,null,null,null,null,null,null,null,null,null,null,null,null,null,null,null,null,null,null,null,null,null,null,"231 ",1,false,"257 ",4,false]
[null,null,null,null,null,null,null,null,null,null,null,null,null,null,null,null,null,null,null,null,null,null,null,null,null,null,null,null,null,null,null,null,null,null,null,null,null,null,null,null,null,null,null,null,"235 ",1,false,"258 ",4,false]
[null,null,null,null,null,null,null,null,null,null,null,null,null,null,null,null,null,null,null,null,null,null,null,null,null,null,null,null,null,null,null,null,null,null,null,null,null,null,null,null,null,null,null,null,"239 ",3,false,"261 ",2,false]
[null,null,null,null,null,null,null,null,null,null,null,null,null,null,null,null,null,null,null,null,null,null,null,null,null,null,null,null,null,null,null,null,null,null,null,null,null,null,null,null,null,null,null,null,"240 ",3,false,"262 ",2,false]
[null,null,null,null,null,null,null,null,null,null,null,null,null,null,null,null,null,null,null,null,null,null,null,null,null,null,null,null,null,null,null,null,null,null,null,null,null,null,null,null,null,null,null,null,"241 ",3,false,"263 ",2,false]
[null,null,null,null,null,null,null,null,null,null,null,null,null,null,null,null,null,null,null,null,null,null,null,null,null,null,null,null,null,null,null,null,null,null,null,null,null,null,null,null,null,null,null,null,"246 ",3,false,"264 ",2,false]
[null,null,null,null,null,null,null,null,null,null,null,null,null,null,null,null,null,null,null,null,null,null,null,null,null,null,null,null,null,null,null,null,null,null,null,null,null,null,null,null,null,null,null,null,"249 ",1,false,"265 ",2,false]
[null,null,null,null,null,null,null,null,null,null,null,null,null,null,null,null,null,null,null,null,null,null,null,null,null,null,null,null,null,null,null,null,null,null,null,null,null,null,null,null,null,null,null,null,"263 ",1,true,"266 ",2,false]
[null,null,null,null,null,null,null,null,null,null,null,null,null,null,null,null,null,null,null,null,null,null,null,null,null,null,null,null,null,null,null,null,null,null,null,null,null,null,null,null,null,null,null,null,"267 ",2,false,"267 ",2,false]
[null,null,null,null,null,null,null,null,null,null,null,null,null,null,null,null,null,null,null,null,null,null,null,null,null,null,null,null,null,null,null,null,null,null,null,null,null,null,null,null,null,null,null,null,"274 ",1,false,"268 ",2,false]
[null,null,null,null,null,null,null,null,null,null,null,null,null,null,null,null,null,null,null,null,null,null,null,null,null,null,null,null,null,null,null,null,null,null,null,null,null,null,null,null,null,null,null,null,"275 ",1,false,"269 ",2,false]
[null,null,null,null,null,null,null,null,null,null,null,null,null,null,null,null,null,null,null,null,null,null,null,null,null,null,null,null,null,null,null,null,null,null,null,null,null,null,null,null,null,null,null,null,"279 ",4,false,"270 ",2,false]
[null,null,null,null,null,null,null,null,null,null,null,null,null,null,null,null,null,null,null,null,null,null,null,null,null,null,null,null,null,null,null,null,null,null,null,null,null,null,null,null,null,null,null,null,"280 ",4,false,"271 ",2,false]
[null,null,null,null,null,null,null,null,null,null,null,null,null,null,null,null,null,null,null,null,null,null,null,null,null,null,null,null,null,null,null,null,null,null,null,null,null,null,null,null,null,null,null,null,"281 ",4,false,"272 ",2,false]
[null,null,null,null,null,null,null,null,null,null,null,null,null,null,null,null,null,null,null,null,null,null,null,null,null,null,null,null,null,null,null,null,null,null,null,null,null,null,null,null,null,null,null,null,"282 ",4,false,"273 ",2,false]
[null,null,null,null,null,null,null,null,null,null,null,null,null,null,null,null,null,null,null,null,null,null,null,null,null,null,null,null,null,null,null,null,null,null,null,null,null,null,null,null,null,null,null,null,"283 ",4,false,"274 ",2,false]
[null,null,null,null,null,null,null,null,null,null,null,null,null,null,null,null,null,null,null,null,null,null,null,null,null,null,null,null,null,null,null,null,null,null,null,null,null,null,null,null,null,null,null,null,"284 ",4,false,"275 ",2,false]
[null,null,null,null,null,null,null,null,null,null,null,null,null,null,null,null,null,null,null,null,null,null,null,null,null,null,null,null,null,null,null,null,null,null,null,null,null,null,null,null,null,null,null,null,"285 ",4,false,"276 ",2,false]
[null,null,null,null,null,null,null,null,null,null,null,null,null,null,null,null,null,null,null,null,null,null,null,null,null,null,null,null,null,null,null,null,null,null,null,null,null,null,null,null,null,null,null,null,"286 ",4,false,"277 ",2,false]
[null,null,null,null,null,null,null,null,null,null,null,null,null,null,null,null,null,null,null,null,null,null,null,null,null,null,null,null,null,null,null,null,null,null,null,null,null,null,null,null,null,null,null,null,"287 ",4,false,"278 ",2,false]
[null,null,null,null,null,null,null,null,null,null,null,null,null,null,null,null,null,null,null,null,null,null,null,null,null,null,null,null,null,null,null,null,null,null,null,null,null,null,null,null,null,null,null,null,"291 ",1,false]

{"sheet":"Demo Builder","index":5,"n_rows":74,"n_cols":6,"rows_kept":74,"cut":false,"hidden":true,"merged":[]}
[null,"Direction","Loop Time","Direction","Ctrl Key Pressed?"]
["19 Left",{"$f":"RIGHT(A2,LEN(A2)-FIND(\" \",A2))","v":"Left"},{"$f":"LEFT(A2,FIND(\" \",A2))","v":"19 "},{"$f":"IF(B2=\"Right\",1,IF(B2=\"Left\",2, IF(B2=\"Up\",3,4)))","v":2},false,"1= Right"]
["20 Left",{"$f":"RIGHT(A3,LEN(A3)-FIND(\" \",A3))","v":"Left"},"20 ",2,false,"2 = Left"]
["25 Down","Down","25 ",4,false,"3 = Up"]
["26 Down","Down","26 ",4,false,"4 = Down"]
["31 Down","Down","31 ",4,false]
["35 Right","Right","35 ",1,false]
["36 Right","Right","36 ",1,false]
["37 Right","Right","37 ",1,false]
["38 Right","Right","38 ",1,false]
["39 Right","Right","39 ",1,false]
["40 Right","Right","40 ",{"$f":"IF(B12=\"Right\",1,IF(B12=\"Left\",2, IF(B12=\"Up\",3,4)))","v":1},false]
["41 Right","Right","41 ",1,false]
["42 Right","Right","42 ",1,false]
["47 Up","Up","47 ",3,false]
["48 Up","Up","48 ",3,false]
["49 Up","Up","49 ",3,false]
["50 Up","Up","50 ",3,false]
["54 Right","Right","54 ",1,false]
["55 Right","Right","55 ",1,false]
["59 Right","Right","59 ",1,false]
["64 Right","Right","64 ",1,false]
["157 Right","Right","157 ",1,false]
["158 Right","Right","158 ",1,false]
["184 Left","Left","184 ",2,false]
["187 Left","Left","187 ",2,false]
["190 Up","Up","190 ",3,false]
["191 Up","Up","191 ",3,false]
["192 Up","Up","192 ",3,false]
["202 Up","Up","202 ",3,false]
["205 Left","Left","205 ",2,false]
["206 Left","Left","206 ",2,false]
["207 Left","Left","207 ",2,false]
["211 Left","Left",{"$f":"LEFT(A34,FIND(\" \",A34))","v":"211 "},2,false]
["215 Down","Down","215 ",4,false]
["218 Right","Right","218 ",1,false]
["221 Left","Left","221 ",2,false]
["222 Left","Left","222 ",2,false]
["224 Down","Down","224 ",4,false]
["225 Down","Down","225 ",4,false]
["228 Right","Right","228 ",1,false]
["229 Right","Right","229 ",1,false]
["230 Right","Right","230 ",1,false]
["236 Right","Right","236 ",1,false]
["240 Down","Down","240 ",4,false]
["241 Down","Down","241 ",4,false]
["247 Right","Right","247 ",1,false]
["248 Right","Right","248 ",1,false]
["249 Right","Right","249 ",1,false]
["250 Right","Right","250 ",1,false]
["253 Down","Down","253 ",4,false]
["254 Down","Down","254 ",4,false]
["255 Down","Down","255 ",4,false]
["256 Down","Down","256 ",4,false]
["257 Down","Down","257 ",4,false]
["258 Down","Down","258 ",4,false]
["261 Left","Left","261 ",2,false]
["262 Left","Left","262 ",2,false]
["263 Left","Left","263 ",2,false]
["264 Left","Left","264 ",2,false]
["265 Left","Left","265 ",2,false]
["266 Left","Left","266 ",2,false]
["267 Left","Left","267 ",2,false]
["268 Left","Left","268 ",2,false]
["269 Left","Left","269 ",2,false]
["270 Left","Left",{"$f":"LEFT(A66,FIND(\" \",A66))","v":"270 "},2,false]
["271 Left",{"$f":"RIGHT(A67,LEN(A67)-FIND(\" \",A67))","v":"Left"},"271 ",2,false]
["272 Left","Left","272 ",2,false]
["273 Left","Left","273 ",2,false]
["274 Left","Left","274 ",2,false]
["275 Left","Left","275 ",2,false]
["276 Left","Left","276 ",2,false]
["277 Left","Left","277 ",2,false]
["278 Left","Left","278 ",2,false]

{"sheet":"Information","index":6,"n_rows":70,"n_cols":42,"rows_kept":70,"cut":false,"hidden":false,"merged":[]}
["Here are the codes I use in game for characters on Game Maps:"]
[]
["T","Titanium Wall"]
["X","Rocky"]
["R","Rock"]
["C","Crystal"]
["D","Dirt"]
["W","Brick Wall"]
["Z","Magic Wall (off)"]
["E","Empty Space"]
["P","Closed Exit"]
["M","Moth"]
["F","Fly"]
["A","Aomeba"]
[]
["Here are the extra in game codes I use:"]
["EE","Explosion :  Turns into Empty Space"]
["EC","Explosion:  Turns into Crystals"]
["FR","Falling Rock"]
["FC","Falling Cystal"]
["O","Open Exit Stage 1"]
["OB","Open Exit Stage 2"]
[]
[]
["T","T","T","T","T","T","T","T","T","T","T","T","T","T","T","T","T","T","T","T","T","T","T","T","T","T","T","T","T","T","T","T","T","R","T","T","T","T","T","T","GamePack Name","User1"]
["T",null,"W",null,"W",null,"W",null,"W",null,"W","D","D","T",null,null,null,null,"A","A","A","A",null,null,null,null,"T","D","D","W",null,"W",null,"W",null,"W",null,"W",null,"T","Level Number",3]
["T","M","W","F","W","M","W","F","W","M","W","D","D","T",null,null,null,null,"A","A","A","A",null,null,null,null,"T","D","D","W","M","W","F","W","M","W","F","W","M","T","Level Name","Test Level"]
["T",null,"W",null,"W",null,"W",null,"W",null,"W","D","D","T",null,null,null,null,"A","A","A","A",null,null,null,null,"T","D","D","W",null,"W",null,"W",null,"W",null,"W",null,"T","Level Time",200]
["T","M","W","F","W","M","W","F","W","M","W","D","D","T",null,null,null,null,"A","A","A","A",null,null,null,null,"T","D","D","W","M","W","F","W","M","W","F","W","M","T","Amoeba Time",0]
["T",null,"W",null,"W",null,"W",null,"W",null,"W","D","D","T",null,null,null,null,null,null,null,null,null,null,null,null,"T","D","D","W",null,"W",null,"W",null,"W",null,"W",null,"T","Diamonds Needed",10]
["T","M","W","F","W","M","W","F","W","M","W","D","D","T",null,null,null,null,null,null,null,null,null,null,null,null,"T","D","D","W","M","W","F","W","M","W","F","W","M","T","Level Comments","Pick up jewels and exit before time is up"]
["T",null,"W",null,"W",null,"W",null,"W",null,"W","D","D","T",null,null,null,null,null,null,null,null,null,null,null,null,"T","D","D","W",null,"W",null,"W",null,"W",null,"W",null,"T"]
["T","M","W","F","W","M","W","F","W","M","W","D","D","T",null,null,null,null,null,null,null,null,null,null,null,null,"T","D","D","W","M","W","F","W","M","W","F","W","M","T"]
["T",null,"W",null,"W",null,"W",null,"W",null,"W","D","D","D",null,null,null,null,null,null,null,null,null,null,null,null,"D","D","D","W",null,"W",null,"W",null,"W",null,"W",null,"T"]
["T","M","W","F","W","M","W","F","W","M","W","D","D","D",null,null,null,null,null,null,null,null,null,null,null,null,"D","D","D","W","M","W","F","W","M","W","F","W","M","T"]
["T",null,"W",null,"W",null,"W",null,"W",null,"W","D","D","D",null,null,null,null,null,null,null,null,null,null,null,null,"D","D","D","W",null,"W",null,"W",null,"W",null,"W",null,"T"]
["T","R","D","R","D","R","D","R","D","R","D","D","D","T",null,null,null,null,null,null,null,null,null,null,null,null,"T","D","D","D","R","D","R","D","R","D","R","D","R","T"]
["T","D","D","D","D","D","D","D","D","D","D","D","D","D","T",null,null,null,null,null,null,null,null,null,null,"T","D","D","D","D","D","D","D","D","D","D","D","D","D","T"]
["T","D","D","D","D","D","D","D","D","D","D","D","D","D","D","T",null,null,null,null,null,null,null,null,"T","D","D","D","D","D","D","D","D","D","D","D","D","D","D","T"]
["T","D","D","D","D","D","D","D","D","D","D","D","D","D","D","D","T",null,null,"X",null,null,null,"T","D","D","D","D","D","D","D","D","D","D","D","D","D","D","D","T"]
["T","D","D","D","D","D","D","D","D","D","D","D","D","D","D","D","T",null,null,null,null,null,null,"T","D","D","D","D","D","D","D","D","D","D","D","D","D","D","D","T"]
["T","D","D","D","D","D","D","D","D","D","D","D","D","D","D","D","T",null,null,null,null,null,null,"T","D","D","D","D","D","D","D","D","D","D","D","D","D","D","D","T"]
["T","D","D","D","D","D","D","D","D","D","D","D","D","D","D","D","T",null,null,null,null,null,null,"T","D","D","D","D","D","D","D","D","D","D","D","D","D","D","D","T"]
["T","D","D","D","D","D","D","D","D","D","D","D","D","D","D","D","T","D","D","D","D","D","D","T","D","D","D","D","D","D","D","D","D","D","D","D","D","D","D","T"]
["T","D","D","P","D","D","D","D","D","D","D","D","D","D","D","D","D","D","D","D","D","D","D","D","D","D","D","D","D","D","D","D","D","D","D","D","D","D","D","T"]
["T","T","T","T","T","T","T","T","T","T","T","T","T","T","T","T","T","T","T","T","T","T","T","T","T","T","T","T","T","T","T","T","T","T","T","T","T","T","T","T"]
["Below is the Blank 'Reset' Level Cave"]
["T","T","T","T","T","T","T","T","T","T","T","T","T","T",null,null,null,null,null,null,null,null,null,null,null,null,"T","T","T","T","T","T","T","T","T","T","T","T","T","T"]
["T","X",null,null,null,null,null,null,null,null,null,null,null,null,null,null,null,null,null,null,null,null,null,null,null,null,null,null,null,null,null,null,null,null,null,null,null,null,null,"T"]
["T",null,null,null,null,null,null,null,null,null,null,null,null,null,null,null,null,null,null,null,null,null,null,null,null,null,null,null,null,null,null,null,null,null,null,null,null,null,null,"T"]
["T",null,null,null,null,null,null,null,null,null,null,null,null,null,null,null,null,null,null,null,null,null,null,null,null,null,null,null,null,null,null,null,null,null,null,null,null,null,null,"T"]
["T",null,null,null,null,null,null,null,null,null,null,null,null,null,null,null,null,null,null,null,null,null,null,null,null,null,null,null,null,null,null,null,null,null,null,null,null,null,null,"T"]
["T",null,null,null,null,null,null,null,null,null,null,null,null,null,null,null,null,null,null,null,null,null,null,null,null,null,null,null,null,null,null,null,null,null,null,null,null,null,null,"T"]
["T",null,null,null,null,null,null,null,null,null,null,null,null,null,null,null,null,null,null,null,null,null,null,null,null,null,null,null,null,null,null,null,null,null,null,null,null,null,null,"T"]
["T",null,null,null,null,null,null,null,null,null,null,null,null,null,null,null,null,null,null,null,null,null,null,null,null,null,null,null,null,null,null,null,null,null,null,null,null,null,null,"T"]
["T",null,null,null,null,null,null,null,null,null,null,null,null,null,null,null,null,null,null,null,null,null,null,null,null,null,null,null,null,null,null,null,null,null,null,null,null,null,null,"T"]
["T",null,null,null,null,null,null,null,null,null,null,null,null,null,null,null,null,null,null,null,null,null,null,null,null,null,null,null,null,null,null,null,null,null,null,null,null,null,null,"T"]
["T",null,null,null,null,null,null,null,null,null,null,null,null,null,null,null,null,null,null,null,null,null,null,null,null,null,null,null,null,null,null,null,null,null,null,null,null,null,null,"T"]
["T",null,null,null,null,null,null,null,null,null,null,null,null,null,null,null,null,null,null,null,null,null,null,null,null,null,null,null,null,null,null,null,null,null,null,null,null,null,null,"T"]
["T",null,null,null,null,null,null,null,null,null,null,null,null,null,null,null,null,null,null,null,null,null,null,null,null,null,null,null,null,null,null,null,null,null,null,null,null,null,null,"T"]
["T",null,null,null,null,null,null,null,null,null,null,null,null,null,null,null,null,null,null,null,null,null,null,null,null,null,null,null,null,null,null,null,null,null,null,null,null,null,null,"T"]
["T",null,null,null,null,null,null,null,null,null,null,null,null,null,null,null,null,null,null,null,null,null,null,null,null,null,null,null,null,null,null,null,null,null,null,null,null,null,null,"T"]
["T",null,null,null,null,null,null,null,null,null,null,null,null,null,null,null,null,null,null,null,null,null,null,null,null,null,null,null,null,null,null,null,null,null,null,null,null,null,null,"T"]
["T",null,null,null,null,null,null,null,null,null,null,null,null,null,null,null,null,null,null,null,null,null,null,null,null,null,null,null,null,null,null,null,null,null,null,null,null,null,null,"T"]
["T",null,null,null,null,null,null,null,null,null,null,null,null,null,null,null,null,null,null,null,null,null,null,null,null,null,null,null,null,null,null,null,null,null,null,null,null,null,null,"T"]
["T",null,null,null,null,null,null,null,null,null,null,null,null,null,null,null,null,null,null,null,null,null,null,null,null,null,null,null,null,null,null,null,null,null,null,null,null,null,null,"T"]
["T",null,null,null,null,null,null,null,null,null,null,null,null,null,null,null,null,null,null,null,null,null,null,null,null,null,null,null,null,null,null,null,null,null,null,null,null,null,null,"T"]
["T",null,null,null,null,null,null,null,null,null,null,null,null,null,null,null,null,null,null,null,null,null,null,null,null,null,null,null,null,null,null,null,null,null,null,null,null,null,"P","T"]
["T","T","T","T","T","T","T","T","T","T","T","T","T","T",null,null,null,null,null,null,null,null,null,null,null,null,"T","T","T","T","T","T","T","T","T","T","T","T","T","T"]
["Below is the Cave in compiled format for use in testing the level"]

{"sheet":"Options","index":7,"n_rows":23,"n_cols":11,"rows_kept":23,"cut":false,"hidden":false,"merged":[]}
[null,"Current","Default",null,"Total GamePacks:",2,null,"Here is the data used when creating a new GamePack"]
["Animation Rate",0,50,null,"Name","Notes",null,"T40",null,"Name"]
[null,"GamePack","Level",null,"Original","Original Levels",null,"T1X1E37T1",null,"Comments"]
["User Selection:",1,1,null,"CoolPack","Cool Pack",null,"T1E38T1"]
["Choose Level Ok Pressed?",0,"1 = True\n0 = False",null,null,null,null,"T1E38T1"]
["Last High Score User name","Owen Morgan",null,null,null,null,null,"T1E38T1",null,"Diamonds Needed"]
["Level Editor",null,null,null,null,null,null,"T1E38T1",null,"Time",200]
["Row Selected",13,null,null,null,null,null,"T1E38T1",null,"Ameba Time"]
["Column Selected",22,null,null,null,null,null,"T1E38T1",null,"High Score"]
["Target Address","$AI$20",null,null,null,null,null,"T1E38T1",null,"High Score Name"]
["GamePack Chosen",3,null,null,null,null,null,"T1E38T1"]
[null,null,null,null,null,null,null,"T1E38T1"]
[null,null,null,null,null,null,null,"T1E38T1"]
[null,null,null,null,null,null,null,"T1E38T1"]
[null,null,null,null,null,null,null,"T1E38T1"]
[null,null,null,null,null,null,null,"T1E38T1"]
[null,null,null,null,null,null,null,"T1E38T1"]
[null,null,null,null,null,null,null,"T1E38T1"]
[null,null,null,null,null,null,null,"T1E38T1"]
[null,null,null,null,null,null,null,"T1E38T1"]
[null,null,null,null,null,null,null,"T1E38T1"]
[null,null,null,null,null,null,null,"T1E37P1T1"]
[null,null,null,null,null,null,null,"T40"]